Body Name,ONS SNAC ID,Pay Date,Transaction No,Amount �,Supplier Id,Supplier Name,Company Registration No,Department,Account,Account Name,CIPFA Service Reporting
Swale Borough Council,29UM,02/05/2017,1150194,441.66,104360,BLENWOOD LTD,4383277                  ,LEISURE & OPEN SPACES,21220,Grounds Contract Variations,Cultural and Related Services
Swale Borough Council,29UM,02/05/2017,1150196,972.71,104360,BLENWOOD LTD,4383277                  ,LEISURE & OPEN SPACES,21200,Maintenance - Grounds,Cultural and Related Services
Swale Borough Council,29UM,02/05/2017,1150197,1137.22,104360,BLENWOOD LTD,4383277                  ,LEISURE & OPEN SPACES,21205,Nursery Stock,Cultural and Related Services
Swale Borough Council,29UM,02/05/2017,1150198,297.22,104360,BLENWOOD LTD,4383277                  ,LEISURE & OPEN SPACES,21200,Maintenance - Grounds,Cultural and Related Services
Swale Borough Council,29UM,02/05/2017,1150098,304.00,112268,PAR FLAGS,                         ,LEISURE & OPEN SPACES,21200,Maintenance - Grounds,Cultural and Related Services
Swale Borough Council,29UM,02/05/2017,1149918,435.24,108791,ROYAL MAIL GROUP LTD,4138203                  ,REVENUE SERVICES,46023,Postage,Central Services to the Public
Swale Borough Council,29UM,02/05/2017,1149974,1259.34,108791,ROYAL MAIL GROUP LTD,4138203                  ,PROPERTY SERVICES,46023,Postage,Holding Codes
Swale Borough Council,29UM,03/05/2017,1150378,550.00,114177,REDACTED PERSONAL INFORMATION,                         ,HOUSING SERVICES,45005,Homelessness  Prevention Services,Housing
Swale Borough Council,29UM,03/05/2017,1149997,3500.00,103250,ASHFORD BOROUGH COUNCIL,                         ,HOUSING SERVICES,45001,Fees And Services,Housing
Swale Borough Council,29UM,03/05/2017,1150319,433.60,107460,ASPLI SAFETY LTD,1387726                  ,SERVICE DELIVERY,21200,Maintenance - Grounds,Cultural and Related Services
Swale Borough Council,29UM,03/05/2017,1150224,378.15,104360,BLENWOOD LTD,4383277                  ,LEISURE & OPEN SPACES,21310,Sheerness Paddling Pool Maintenance,Cultural and Related Services
Swale Borough Council,29UM,03/05/2017,1150225,2224.46,104360,BLENWOOD LTD,4383277                  ,LEISURE & OPEN SPACES,21217,Forestry/Woodland,Cultural and Related Services
Swale Borough Council,29UM,03/05/2017,1150380,417.70,104360,BLENWOOD LTD,4383277                  ,LEISURE & OPEN SPACES,21220,Grounds Contract Variations,Cultural and Related Services
Swale Borough Council,29UM,03/05/2017,1150382,514.79,104360,BLENWOOD LTD,4383277                  ,CAR PARKS,21200,Maintenance - Grounds,Highway and Transport Services
Swale Borough Council,29UM,03/05/2017,1150242,540.00,110330,BLUE TOWN REMEMBERED,                         ,TOURISM & SPORTS DEVELOPMENT,48010,Grants & Subscriptions,Cultural and Related Services
Swale Borough Council,29UM,03/05/2017,1150033,500.00,111778,BORDEN PARISH COUNCIL,                         ,COMMUNITY SAFETY,48010,Grants & Subscriptions,Central Services to the Public
Swale Borough Council,29UM,03/05/2017,1150279,971.75,104363,CAPITA BUSINESS SERVICES LTD,                         ,REVENUE SERVICES,46140,Computer Equipment & Materials,Housing
Swale Borough Council,29UM,03/05/2017,1149953,4000.00,111536,CBRE LTD,3536032                  ,PLANNING SERVICES,45001,Fees And Services,Planning and Development Services
Swale Borough Council,29UM,03/05/2017,1150280,503.94,109501,CHEGWORTH GRAPHIC,7683594                  ,COMMUNICATIONS,44009,Signage,Internal Trading Cost Centres
Swale Borough Council,29UM,03/05/2017,1150460,666.66,102076,CLARKES SPORTS STUDIO,                         ,LEISURE & OPEN SPACES,48010,Grants & Subscriptions,Cultural and Related Services
Swale Borough Council,29UM,03/05/2017,1150281,3493.28,112288,COMENSURA LTD,04085767                 ,HUMAN RESOURCES,12610,Agency/Contract Staff,Internal Trading Cost Centres
Swale Borough Council,29UM,03/05/2017,1150177,359.00,106642,CONTRACT SECURITY SERVICES,2461362                  ,EXCHEQUER,45007,Cash Security,Internal Trading Cost Centres
Swale Borough Council,29UM,03/05/2017,1150177,4330.56,106642,CONTRACT SECURITY SERVICES,2461362                  ,CAR PARKS,45007,Cash Security,Highway and Transport Services
Swale Borough Council,29UM,03/05/2017,1150489,4993.49,110872,DAYTRAD LIMITED,7654373                  ,HOUSING SERVICES,04005,Housing Renovation Grants,Not used in this Structure
Swale Borough Council,29UM,03/05/2017,1149914,2619.07,103361,GEMINI CONSULTANTS LTD,2088382                  ,FINANCIAL SERVICES,45095,Gemini Mortgages,Housing
Swale Borough Council,29UM,03/05/2017,1150253,132.00,105051,GRAVENEY VILLAGE HALL,                         ,DEMOCRATIC & ELECTORAL SERVICES,23210,Hire Of Premises,Ledger/Suspense Codes
Swale Borough Council,29UM,03/05/2017,1150253,132.00,105051,GRAVENEY VILLAGE HALL,                         ,DEMOCRATIC & ELECTORAL SERVICES,23210,Hire Of Premises,Ledger/Suspense Codes
Swale Borough Council,29UM,03/05/2017,1150485,4596.50,108368,HIGHER ELEVATION LTD,                         ,HOUSING SERVICES,04005,Housing Renovation Grants,Not used in this Structure
Swale Borough Council,29UM,03/05/2017,1150203,8405.00,113545,IKEN BUSINESS LTD,2776536                  ,MKS LEGAL SERVICES,46140,Computer Equipment & Materials,Internal Trading Cost Centres
Swale Borough Council,29UM,03/05/2017,1150482,460.00,102605,J & D SYSTEMS,                         ,HOUSING SERVICES,04005,Housing Renovation Grants,Not used in this Structure
Swale Borough Council,29UM,03/05/2017,1150483,6263.65,102605,J & D SYSTEMS,                         ,HOUSING SERVICES,04005,Housing Renovation Grants,Not used in this Structure
Swale Borough Council,29UM,03/05/2017,1150244,443.20,111901,KENT INVICTA CHAMBER OF COMMERCE,2794615                  ,ECONOMIC DEVELOPMENT,45001,Fees And Services,Planning and Development Services
Swale Borough Council,29UM,03/05/2017,1150337,450.00,107251,LEYSDOWN VILLAGE HALL,                         ,DEMOCRATIC & ELECTORAL SERVICES,23210,Hire Of Premises,Ledger/Suspense Codes
Swale Borough Council,29UM,03/05/2017,1150337,500.00,107251,LEYSDOWN VILLAGE HALL,                         ,DEMOCRATIC & ELECTORAL SERVICES,23210,Hire Of Premises,Ledger/Suspense Codes
Swale Borough Council,29UM,03/05/2017,1150246,2500.00,111356,LONDON BOROUGH OF CAMDEN,                         ,HOUSING SERVICES,45001,Fees And Services,Housing
Swale Borough Council,29UM,03/05/2017,1150283,350.00,109367,LOWER HALSTOW MEMORIAL HALL TRUST FUND,                         ,DEMOCRATIC & ELECTORAL SERVICES,23210,Hire Of Premises,Ledger/Suspense Codes
Swale Borough Council,29UM,03/05/2017,1150283,350.00,109367,LOWER HALSTOW MEMORIAL HALL TRUST FUND,                         ,DEMOCRATIC & ELECTORAL SERVICES,23210,Hire Of Premises,Ledger/Suspense Codes
Swale Borough Council,29UM,03/05/2017,1150416,340.00,112732,LYRECO UK LTD,                         ,PROPERTY SERVICES,44014,Paper,Internal Trading Cost Centres
Swale Borough Council,29UM,03/05/2017,1149834,2705.00,112498,MAGEES GUESTHOUSE,                         ,HOUSING SERVICES,45009,B & B - Landlords Payments,Housing
Swale Borough Council,29UM,03/05/2017,1149951,3040.00,112498,MAGEES GUESTHOUSE,                         ,HOUSING SERVICES,45009,B & B - Landlords Payments,Housing
Swale Borough Council,29UM,03/05/2017,1150054,2415.00,112498,MAGEES GUESTHOUSE,                         ,HOUSING SERVICES,45009,B & B - Landlords Payments,Housing
Swale Borough Council,29UM,03/05/2017,1150240,2800.00,112498,MAGEES GUESTHOUSE,                         ,HOUSING SERVICES,45009,B & B - Landlords Payments,Housing
Swale Borough Council,29UM,03/05/2017,1150059,70155.95,108467,MAIDSTONE BOROUGH COUNCIL,                         ,CONTRACT & PROCUREMENT,53010,Private Contractors,Environmental and Regulatory Services
Swale Borough Council,29UM,03/05/2017,1150059,189853.74,108467,MAIDSTONE BOROUGH COUNCIL,                         ,CONTRACT & PROCUREMENT,53010,Private Contractors,Environmental and Regulatory Services
Swale Borough Council,29UM,03/05/2017,1150277,1943.80,108467,MAIDSTONE BOROUGH COUNCIL,                         ,REVENUE SERVICES,45001,Fees And Services,Central Services to the Public
Swale Borough Council,29UM,03/05/2017,1150488,5115.00,114575,MCL (KENT) LIMITED,                         ,HOUSING SERVICES,04005,Housing Renovation Grants,Not used in this Structure
Swale Borough Council,29UM,03/05/2017,1149748,2907.20,108123,MEDWAY ACCOMMODATION LIMITED,                         ,HOUSING SERVICES,45009,B & B - Landlords Payments,Housing
Swale Borough Council,29UM,03/05/2017,1149748,605.67,108123,MEDWAY ACCOMMODATION LIMITED,                         ,HOUSING SERVICES,45009,B & B - Landlords Payments,Housing
Swale Borough Council,29UM,03/05/2017,1149910,2979.20,108123,MEDWAY ACCOMMODATION LIMITED,                         ,HOUSING SERVICES,45009,B & B - Landlords Payments,Housing
Swale Borough Council,29UM,03/05/2017,1149910,620.67,108123,MEDWAY ACCOMMODATION LIMITED,                         ,HOUSING SERVICES,45009,B & B - Landlords Payments,Housing
Swale Borough Council,29UM,03/05/2017,1150043,514.00,108123,MEDWAY ACCOMMODATION LIMITED,                         ,HOUSING SERVICES,45009,B & B - Landlords Payments,Housing
Swale Borough Council,29UM,03/05/2017,1150043,2467.20,108123,MEDWAY ACCOMMODATION LIMITED,                         ,HOUSING SERVICES,45009,B & B - Landlords Payments,Housing
Swale Borough Council,29UM,03/05/2017,1150211,2237.60,108123,MEDWAY ACCOMMODATION LIMITED,                         ,HOUSING SERVICES,45009,B & B - Landlords Payments,Housing
Swale Borough Council,29UM,03/05/2017,1150211,466.17,108123,MEDWAY ACCOMMODATION LIMITED,                         ,HOUSING SERVICES,45009,B & B - Landlords Payments,Housing
Swale Borough Council,29UM,03/05/2017,1150336,400.00,112415,MILTON COURT PRIMARY ACADEMY,                         ,DEMOCRATIC & ELECTORAL SERVICES,23210,Hire Of Premises,Ledger/Suspense Codes
Swale Borough Council,29UM,03/05/2017,1150229,900.00,105237,REDACTED PERSONAL INFORMATION,                         ,HOUSING SERVICES,45080,RDS - Landlord claim on Bond Scheme,Housing
Swale Borough Council,29UM,03/05/2017,1150230,800.00,105237,REDACTED PERSONAL INFORMATION,                         ,HOUSING SERVICES,45080,RDS - Landlord claim on Bond Scheme,Housing
Swale Borough Council,29UM,03/05/2017,1150221,823.00,108900,REDACTED PERSONAL INFORMATION,                         ,HOUSING SERVICES,45080,RDS - Landlord claim on Bond Scheme,Housing
Swale Borough Council,29UM,03/05/2017,1150222,935.00,108900,REDACTED PERSONAL INFORMATION,                         ,HOUSING SERVICES,45080,RDS - Landlord claim on Bond Scheme,Housing
Swale Borough Council,29UM,03/05/2017,1150172,258.08,112691,NPOWER,                         ,LEISURE & OPEN SPACES,22020,Electricity,Cultural and Related Services
Swale Borough Council,29UM,03/05/2017,1150174,276.93,112691,NPOWER,                         ,CAR PARKS,22020,Electricity,Highway and Transport Services
Swale Borough Council,29UM,03/05/2017,1149858,29567.00,114420,PARAMOUNT INDEPENDENT PROPERTY SERVICES,                         ,HOUSING SERVICES,45009,B & B - Landlords Payments,Housing
Swale Borough Council,29UM,03/05/2017,1150338,290.33,107200,PORTAKABIN LIMITED,685303                   ,LEISURE & OPEN SPACES,21200,Maintenance - Grounds,Environmental and Regulatory Services
Swale Borough Council,29UM,03/05/2017,1150293,668.93,112614,PREMIER PAPER GROUP LTD,                         ,PROPERTY SERVICES,44014,Paper,Internal Trading Cost Centres
Swale Borough Council,29UM,03/05/2017,1150342,299.00,104532,RICS BUSINESS SERVICES LTD,                         ,PROPERTY SERVICES,41010,"Books, Journals & e - resources",Internal Trading Cost Centres
Swale Borough Council,29UM,03/05/2017,1150384,1150.06,108791,ROYAL MAIL GROUP LTD,4138203                  ,DEMOCRATIC & ELECTORAL SERVICES,46023,Postage,Ledger/Suspense Codes
Swale Borough Council,29UM,03/05/2017,1150016,282.40,114761,S & J SERVICES,                         ,LEISURE & OPEN SPACES,21200,Maintenance - Grounds,Cultural and Related Services
Swale Borough Council,29UM,03/05/2017,1150352,389.00,105676,SERCO LEISURE OPERATING LIMITED,04687478                 ,LEISURE & OPEN SPACES,21016,Non-Planned Building Maintenance,Cultural and Related Services
Swale Borough Council,29UM,03/05/2017,1150190,3118.23,113430,SHARP BUSINESS SYSTEMS UK,2136901                  ,MKS ICT,40111,Equipment Rental,Holding Codes
Swale Borough Council,29UM,03/05/2017,1150191,8264.63,113430,SHARP BUSINESS SYSTEMS UK,2136901                  ,MKS ICT,40111,Equipment Rental,Holding Codes
Swale Borough Council,29UM,03/05/2017,1150296,1250.00,103013,SHARPE PRITCHARD,                         ,PLANNING SERVICES,45012,Legal Fees,Planning and Development Services
Swale Borough Council,29UM,03/05/2017,1150397,550.00,103704,SHEPPEY ESTATES,                         ,HOUSING SERVICES,45005,Homelessness  Prevention Services,Housing
Swale Borough Council,29UM,03/05/2017,1150232,645.00,109091,STREETMASTER PRODUCTS,                         ,LEISURE & OPEN SPACES,21200,Maintenance - Grounds,Cultural and Related Services
Swale Borough Council,29UM,03/05/2017,1150088,1432.12,114795,TAYLOR WIMPEY SOUTH EAST,1392762                  ,FINANCIAL SERVICES,00099,Awaiting Allocation,Ledger/Suspense Codes
Swale Borough Council,29UM,03/05/2017,1150490,644.32,102209,TERRY & CARR LTD,606827                   ,HOUSING SERVICES,04005,Housing Renovation Grants,Not used in this Structure
Swale Borough Council,29UM,03/05/2017,1150243,3600.00,102027,THE FAVERSHAM SOCIETY,250945                   ,TOURISM & SPORTS DEVELOPMENT,48010,Grants & Subscriptions,Cultural and Related Services
Swale Borough Council,29UM,03/05/2017,1150292,383.48,114588,VANITORIALS LIMITED,3952938                  ,PROPERTY SERVICES,26020,Cleaning Materials,Internal Trading Cost Centres
Swale Borough Council,29UM,03/05/2017,1150373,560.00,105026,VENN GROUP LIMITED,                         ,MKS LEGAL SERVICES,12610,Agency/Contract Staff,Internal Trading Cost Centres
Swale Borough Council,29UM,03/05/2017,1150348,900.00,112860,VP PROPERTY DEVELOPMENT LTD,                         ,HOUSING SERVICES,45009,B & B - Landlords Payments,Housing
Swale Borough Council,29UM,03/05/2017,1150402,250.00,107308,WEED MANAGEMENT LTD,4321175                  ,LEISURE & OPEN SPACES,21220,Grounds Contract Variations,Cultural and Related Services
Swale Borough Council,29UM,04/05/2017,1150528,3200.69,104360,BLENWOOD LTD,4383277                  ,LEISURE & OPEN SPACES,21222,Grounds Maint Suspense,Cultural and Related Services
Swale Borough Council,29UM,04/05/2017,1150536,99465.28,104360,BLENWOOD LTD,4383277                  ,LEISURE & OPEN SPACES,21222,Grounds Maint Suspense,Cultural and Related Services
Swale Borough Council,29UM,04/05/2017,1150526,806.33,104737,DX NETWORK SERVICES LIMITED,5026914                  ,MKS LEGAL SERVICES,46023,Postage,Internal Trading Cost Centres
Swale Borough Council,29UM,04/05/2017,1150526,-134.39,104737,DX NETWORK SERVICES LIMITED,5026914                  ,MKS LEGAL SERVICES,46023,Postage,Internal Trading Cost Centres
Swale Borough Council,29UM,04/05/2017,1150026,1226.49,102667,LLOYDS BANK - (DT),                         ,FINANCIAL SERVICES,74030,Bank Charges,Corporate & Democratic Core
Swale Borough Council,29UM,10/05/2017,1150641,5323.50,103278,ACORN MAINTENANCE SERVICES,3546898                  ,HOUSING SERVICES,04005,Housing Renovation Grants,Not used in this Structure
Swale Borough Council,29UM,10/05/2017,1150330,30.11,111217,ALLSTAR BUSINESS SOLUTIONS LTD - (DT),1073098                  ,SERVICE DELIVERY,31230,Petrol/Derv & Oil,Cultural and Related Services
Swale Borough Council,29UM,10/05/2017,1150330,127.07,111217,ALLSTAR BUSINESS SOLUTIONS LTD - (DT),1073098                  ,ENVIRONMENTAL RESPONSE TEAM,32030,Fuel For Contract Vehicles,Internal Trading Cost Centres
Swale Borough Council,29UM,10/05/2017,1150330,62.53,111217,ALLSTAR BUSINESS SOLUTIONS LTD - (DT),1073098                  ,LEISURE & OPEN SPACES,32030,Fuel For Contract Vehicles,Cultural and Related Services
Swale Borough Council,29UM,10/05/2017,1150330,51.15,111217,ALLSTAR BUSINESS SOLUTIONS LTD - (DT),1073098                  ,ENVIRONMENTAL RESPONSE TEAM,32030,Fuel For Contract Vehicles,Environmental and Regulatory Services
Swale Borough Council,29UM,10/05/2017,1150471,349.95,114800,ALWAYS GREENER LTD,5260623                  ,LEISURE & OPEN SPACES,40110,Equipment Purchase,Cultural and Related Services
Swale Borough Council,29UM,10/05/2017,1150344,12881.69,110884,APCOA PARKING (UK) LTD,2572947                  ,CAR PARKS,53010,Private Contractors,Highway and Transport Services
Swale Borough Council,29UM,10/05/2017,1150344,19322.54,110884,APCOA PARKING (UK) LTD,2572947                  ,CAR PARKS,53010,Private Contractors,Highway and Transport Services
Swale Borough Council,29UM,10/05/2017,1150549,1665.00,104360,BLENWOOD LTD,4383277                  ,COMMUNITY SAFETY,21010,Buildings Maintenance,Cultural and Related Services
Swale Borough Council,29UM,10/05/2017,1150324,190.00,114275,CART ASSIST LIMITED,                         ,COMMISSIONING & CUSTOMER CONTACT,53020,Contracts,Internal Trading Cost Centres
Swale Borough Council,29UM,10/05/2017,1150324,760.00,114275,CART ASSIST LIMITED,                         ,COMMISSIONING & CUSTOMER CONTACT,05250,Performance Fund Expenditure,Ledger/Suspense Codes
Swale Borough Council,29UM,10/05/2017,1150379,4500.00,111536,CBRE LTD,3536032                  ,PLANNING SERVICES,45001,Fees And Services,Planning and Development Services
Swale Borough Council,29UM,10/05/2017,1150350,140.00,114278,CBS MAINTENANCE SERVICES LTD,                         ,LEISURE & OPEN SPACES,21011,Service Contracts,Environmental and Regulatory Services
Swale Borough Council,29UM,10/05/2017,1150350,140.00,114278,CBS MAINTENANCE SERVICES LTD,                         ,COMMUNITY SAFETY,21011,Service Contracts,Cultural and Related Services
Swale Borough Council,29UM,10/05/2017,1150350,140.00,114278,CBS MAINTENANCE SERVICES LTD,                         ,PROPERTY SERVICES,21011,Service Contracts,Trading Undertaking
Swale Borough Council,29UM,10/05/2017,1150350,140.00,114278,CBS MAINTENANCE SERVICES LTD,                         ,PROPERTY SERVICES,21011,Service Contracts,Corporate & Democratic Core
Swale Borough Council,29UM,10/05/2017,1150350,140.00,114278,CBS MAINTENANCE SERVICES LTD,                         ,LEISURE & OPEN SPACES,21011,Service Contracts,Cultural and Related Services
Swale Borough Council,29UM,10/05/2017,1150350,140.00,114278,CBS MAINTENANCE SERVICES LTD,                         ,LEISURE & OPEN SPACES,21011,Service Contracts,Cultural and Related Services
Swale Borough Council,29UM,10/05/2017,1150603,3333.33,102613,CHALKWELL COACH HIRE LTD,2520842                  ,PLANNING SERVICES,05000,Payments in Year,Ledger/Suspense Codes
Swale Borough Council,29UM,10/05/2017,1150520,33357.50,104728,CITIZENS ADVICE BUREAU IN SWALE,5052691                  ,COMMUNITY SAFETY,48020,Voluntary Organisations Grants,Central Services to the Public
Swale Borough Council,29UM,10/05/2017,1150642,5553.23,114483,COLDWELL CONSTRUCTION LTD,4814340                  ,HOUSING SERVICES,04005,Housing Renovation Grants,Not used in this Structure
Swale Borough Council,29UM,10/05/2017,1150643,6947.75,114483,COLDWELL CONSTRUCTION LTD,4814340                  ,HOUSING SERVICES,04005,Housing Renovation Grants,Not used in this Structure
Swale Borough Council,29UM,10/05/2017,1150479,2776.02,112288,COMENSURA LTD,04085767                 ,HUMAN RESOURCES,12610,Agency/Contract Staff,Internal Trading Cost Centres
Swale Borough Council,29UM,10/05/2017,1150178,4860.83,114584,CORE ASSETS CHILDREN'S SERVICES LTD,                         ,COMMUNITY SAFETY,45001,Fees And Services,Planning and Development Services
Swale Borough Council,29UM,10/05/2017,1150555,4860.83,114584,CORE ASSETS CHILDREN'S SERVICES LTD,                         ,COMMUNITY SAFETY,45001,Fees And Services,Planning and Development Services
Swale Borough Council,29UM,10/05/2017,1150647,5776.08,110872,DAYTRAD LIMITED,7654373                  ,HOUSING SERVICES,04005,Housing Renovation Grants,Not used in this Structure
Swale Borough Council,29UM,10/05/2017,1150519,1644.52,113657,DHA PLANNING,2683290                  ,PLANNING SERVICES,45001,Fees And Services,Internal Trading Cost Centres
Swale Borough Council,29UM,10/05/2017,1150621,750.00,107482,DIVERSITY HOUSE,                         ,TOURISM & SPORTS DEVELOPMENT,48010,Grants & Subscriptions,Cultural and Related Services
Swale Borough Council,29UM,10/05/2017,1150645,4300.00,106168,DOLPHIN STAIRLIFTS (KENT),04181846                 ,HOUSING SERVICES,04005,Housing Renovation Grants,Not used in this Structure
Swale Borough Council,29UM,10/05/2017,1150646,1665.00,106168,DOLPHIN STAIRLIFTS (KENT),04181846                 ,HOUSING SERVICES,04005,Housing Renovation Grants,Not used in this Structure
Swale Borough Council,29UM,10/05/2017,1150455,8257.76,113869,EXACOM SYSTEMS LTD,07356515                 ,PLANNING SERVICES,40100,Equipment Maintenance,Planning and Development Services
Swale Borough Council,29UM,10/05/2017,1150399,467.45,112604,GALTEC SOLUTIONS LTD,5209602                  ,MKS ICT,05000,Payments in Year,Ledger/Suspense Codes
Swale Borough Council,29UM,10/05/2017,1150563,1155.00,113707,GHYLLSIDE LTD,644979                   ,DEMOCRATIC & ELECTORAL SERVICES,23210,Hire Of Premises,Ledger/Suspense Codes
Swale Borough Council,29UM,10/05/2017,1150564,900.00,113707,GHYLLSIDE LTD,644979                   ,DEMOCRATIC & ELECTORAL SERVICES,23210,Hire Of Premises,Ledger/Suspense Codes
Swale Borough Council,29UM,10/05/2017,1150565,6000.00,114797,GLEEDS COST MANAGEMENT LIMITED,06472932                 ,ECONOMIC DEVELOPMENT,45004,Consultancy/Specialist Advice,Planning and Development Services
Swale Borough Council,29UM,10/05/2017,1150648,1619.81,102743,HUBBARD & HOUGHTON CONSTRUCTION LTD,                         ,HOUSING SERVICES,04005,Housing Renovation Grants,Not used in this Structure
Swale Borough Council,29UM,10/05/2017,1150649,4506.96,102743,HUBBARD & HOUGHTON CONSTRUCTION LTD,                         ,HOUSING SERVICES,04005,Housing Renovation Grants,Not used in this Structure
Swale Borough Council,29UM,10/05/2017,1150650,10506.07,102743,HUBBARD & HOUGHTON CONSTRUCTION LTD,                         ,HOUSING SERVICES,04005,Housing Renovation Grants,Not used in this Structure
Swale Borough Council,29UM,10/05/2017,1150651,4950.00,102743,HUBBARD & HOUGHTON CONSTRUCTION LTD,                         ,HOUSING SERVICES,04005,Housing Renovation Grants,Not used in this Structure
Swale Borough Council,29UM,10/05/2017,1150515,742.00,112802,INFORM CPI LTD,                         ,REVENUE SERVICES,45056,NNDR Additional Rateable Values,Central Services to the Public
Swale Borough Council,29UM,10/05/2017,1149942,303.10,104301,INSIGHT DIRECT (UK) LTD,2579852                  ,PLANNING SERVICES,40110,Equipment Purchase,Planning and Development Services
Swale Borough Council,29UM,10/05/2017,1150434,705.32,104301,INSIGHT DIRECT (UK) LTD,2579852                  ,DEMOCRATIC & ELECTORAL SERVICES,05250,Performance Fund Expenditure,Ledger/Suspense Codes
Swale Borough Council,29UM,10/05/2017,1150438,1500.00,102111,JASMIL KENNELS,05595524                 ,ENVIRONMENTAL RESPONSE TEAM,45011,Kennelling Of Dogs,Environmental and Regulatory Services
Swale Borough Council,29UM,10/05/2017,1150438,-175.00,102111,JASMIL KENNELS,05595524                 ,ENVIRONMENTAL RESPONSE TEAM,93120,Income collected by Dog Kennels,Environmental and Regulatory Services
Swale Borough Council,29UM,10/05/2017,1150334,135556.94,105432,KENT COUNTY COUNCIL,                         ,PLANNING SERVICES,05000,Payments in Year,Ledger/Suspense Codes
Swale Borough Council,29UM,10/05/2017,1150334,1732.08,105432,KENT COUNTY COUNCIL,                         ,PLANNING SERVICES,05000,Payments in Year,Ledger/Suspense Codes
Swale Borough Council,29UM,10/05/2017,1150518,350.00,103310,KENT COUNTY COUNCIL,                         ,COMMUNITY SAFETY,48010,Grants & Subscriptions,Central Services to the Public
Swale Borough Council,29UM,10/05/2017,1150557,5440.00,113650,KINGDOM SECURITY LIMITED,2795197                  ,ENVIRONMENTAL RESPONSE TEAM,45001,Fees And Services,Planning and Development Services
Swale Borough Council,29UM,10/05/2017,1149733,25031.00,114205,LESSHOMELESS LIMITED,08458851                 ,HOUSING SERVICES,45009,B & B - Landlords Payments,Housing
Swale Borough Council,29UM,10/05/2017,1150400,945.00,104750,LUSHLAND,4289261                  ,PLANNING SERVICES,45001,Fees And Services,Planning and Development Services
Swale Borough Council,29UM,10/05/2017,1150404,204.44,112732,LYRECO UK LTD,                         ,DEMOCRATIC & ELECTORAL SERVICES,44012,Stationery,Ledger/Suspense Codes
Swale Borough Council,29UM,10/05/2017,1150404,77.96,112732,LYRECO UK LTD,                         ,DEMOCRATIC & ELECTORAL SERVICES,44012,Stationery,Ledger/Suspense Codes
Swale Borough Council,29UM,10/05/2017,1149596,2390.00,108467,MAIDSTONE BOROUGH COUNCIL,                         ,FINANCIAL SERVICES,05000,Payments in Year,Ledger/Suspense Codes
Swale Borough Council,29UM,10/05/2017,1150678,978568.00,113705,MAIDSTONE BOROUGH COUNCIL - DT,                         ,FINANCIAL SERVICES,48017,Tariff to Gvt,Taxation and Non-Specific Grant Income
Swale Borough Council,29UM,10/05/2017,1150388,1702.00,113371,MATCHTECH,4426336                  ,PLANNING SERVICES,12610,Agency/Contract Staff,Internal Trading Cost Centres
Swale Borough Council,29UM,10/05/2017,1150389,1702.00,113371,MATCHTECH,4426336                  ,PLANNING SERVICES,12610,Agency/Contract Staff,Internal Trading Cost Centres
Swale Borough Council,29UM,10/05/2017,1150390,1380.00,113371,MATCHTECH,4426336                  ,PLANNING SERVICES,12610,Agency/Contract Staff,Internal Trading Cost Centres
Swale Borough Council,29UM,10/05/2017,1150574,1702.00,113371,MATCHTECH,4426336                  ,PLANNING SERVICES,12610,Agency/Contract Staff,Internal Trading Cost Centres
Swale Borough Council,29UM,10/05/2017,1150374,400.00,104196,MEDWAY COUNCIL,                         ,COMMUNITY SAFETY,53115,CCTV Monitoring Service,Environmental and Regulatory Services
Swale Borough Council,29UM,10/05/2017,1150398,4900.00,110358,MELENGA BUSINESS SOLUTIONS LTD,06148446                 ,FINANCIAL SERVICES,12610,Agency/Contract Staff,Internal Trading Cost Centres
Swale Borough Council,29UM,10/05/2017,1150424,610.00,106081,METRIC GROUP LTD,2560839                  ,CAR PARKS,45013,Fees - Licence,Highway and Transport Services
Swale Borough Council,29UM,10/05/2017,1150561,10850.00,109248,REDACTED PERSONAL INFORMATION,                         ,PLANNING SERVICES,45001,Fees And Services,Planning and Development Services
Swale Borough Council,29UM,10/05/2017,1150561,10400.00,109248,REDACTED PERSONAL INFORMATION,                         ,PLANNING SERVICES,45001,Fees And Services,Planning and Development Services
Swale Borough Council,29UM,10/05/2017,1150251,500.00,111780,NEWNHAM PARISH COUNCIL,                         ,COMMUNITY SAFETY,48010,Grants & Subscriptions,Central Services to the Public
Swale Borough Council,29UM,10/05/2017,1150356,257.35,103659,O2 (UK) LTD,1743099                  ,ENVIRONMENTAL RESPONSE TEAM,46015,Cellphone,Internal Trading Cost Centres
Swale Borough Council,29UM,10/05/2017,1150476,780.00,111899,REDACTED PERSONAL INFORMATION,                         ,REVENUE SERVICES,45001,Fees And Services,Housing
Swale Borough Council,29UM,10/05/2017,1150245,1034.60,112567,PATROL,                         ,CAR PARKS,45097,Parking Adjudication Fees,Highway and Transport Services
Swale Borough Council,29UM,10/05/2017,1150245,1034.60,112567,PATROL,                         ,CAR PARKS,45097,Parking Adjudication Fees,Highway and Transport Services
Swale Borough Council,29UM,10/05/2017,1150554,1000.00,112996,RED BULLET,                         ,ECONOMIC DEVELOPMENT,45004,Consultancy/Specialist Advice,Planning and Development Services
Swale Borough Council,29UM,10/05/2017,1150055,600.00,114791,RESTORE THE YEARS,                         ,COMMUNITY SAFETY,48010,Grants & Subscriptions,Central Services to the Public
Swale Borough Council,29UM,10/05/2017,1150591,1369.89,108791,ROYAL MAIL GROUP LTD,4138203                  ,PROPERTY SERVICES,46023,Postage,Holding Codes
Swale Borough Council,29UM,10/05/2017,1150351,670.70,109027,RSP RAIL TRAVEL ACCOUNT - (DT),                         ,FINANCIAL SERVICES,33011,Travel Warrants (Staff Travel),Internal Trading Cost Centres
Swale Borough Council,29UM,10/05/2017,1150459,375.00,104307,RURAL PLANNING LTD,4426249                  ,PLANNING SERVICES,45001,Fees And Services,Planning and Development Services
Swale Borough Council,29UM,10/05/2017,1150252,450.00,104602,SHEPPEY MATTERS,3946296                  ,COMMUNITY SAFETY,48010,Grants & Subscriptions,Central Services to the Public
Swale Borough Council,29UM,10/05/2017,1150493,750.00,102263,SHEPPY GLASS CENTRE LTD,                         ,PROPERTY SERVICES,21016,Non-Planned Building Maintenance,Corporate & Democratic Core
Swale Borough Council,29UM,10/05/2017,1150616,35.26,114493,SODEXO MOTIVATION SOLUTIONS UK LTD,2680629                  ,HUMAN RESOURCES,45001,Fees And Services,Corporate & Democratic Core
Swale Borough Council,29UM,10/05/2017,1150551,585.00,106572,SOUTH & SOUTH EAST IN BLOOM,                         ,LEISURE & OPEN SPACES,49018,Swale In Bloom,Cultural and Related Services
Swale Borough Council,29UM,10/05/2017,1150254,1000.00,114799,ST PETER & ST PAULS CHURCH,                         ,COMMUNITY SAFETY,48010,Grants & Subscriptions,Central Services to the Public
Swale Borough Council,29UM,10/05/2017,1150548,294.00,107962,STG BUILDING CONTROL PARTNERSHIP,                         ,PROPERTY SERVICES,21010,Buildings Maintenance,Corporate & Democratic Core
Swale Borough Council,29UM,10/05/2017,1149957,7500.00,105538,SWALE COMMUNITY & VOLUNTARY SERVICES,277523                   ,COMMUNITY SAFETY,48020,Voluntary Organisations Grants,Central Services to the Public
Swale Borough Council,29UM,10/05/2017,1150609,2727.50,105702,SWALE COMMUNITY LEISURE LIMITED,31132R                   ,DEMOCRATIC & ELECTORAL SERVICES,23210,Hire Of Premises,Ledger/Suspense Codes
Swale Borough Council,29UM,10/05/2017,1150609,200.00,105702,SWALE COMMUNITY LEISURE LIMITED,31132R                   ,DEMOCRATIC & ELECTORAL SERVICES,23210,Hire Of Premises,Ledger/Suspense Codes
Swale Borough Council,29UM,10/05/2017,1150322,1000.00,103473,TAMESIDE MBC,                         ,REVENUE SERVICES,48010,Grants & Subscriptions,Housing
Swale Borough Council,29UM,10/05/2017,1150325,2240.00,111033,THE OYSTER PARTNERSHIP,05020374                 ,PLANNING SERVICES,12610,Agency/Contract Staff,Internal Trading Cost Centres
Swale Borough Council,29UM,10/05/2017,1150430,337.00,110895,THOMSON REUTERS,1679046                  ,PLANNING SERVICES,41010,"Books, Journals & e - resources",Planning and Development Services
Swale Borough Council,29UM,10/05/2017,1150250,412.98,113659,THROWLEY PARISH COUNCIL,                         ,COMMUNITY SAFETY,48010,Grants & Subscriptions,Central Services to the Public
Swale Borough Council,29UM,10/05/2017,1150531,560.00,105026,VENN GROUP LIMITED,                         ,MKS LEGAL SERVICES,12610,Agency/Contract Staff,Internal Trading Cost Centres
Swale Borough Council,29UM,10/05/2017,1150329,1144.50,114657,VIVID RESOURCING LIMITED,06459262                 ,PLANNING SERVICES,12610,Agency/Contract Staff,Internal Trading Cost Centres
Swale Borough Council,29UM,10/05/2017,1150521,1806.00,114657,VIVID RESOURCING LIMITED,06459262                 ,PLANNING SERVICES,12610,Agency/Contract Staff,Internal Trading Cost Centres
Swale Borough Council,29UM,10/05/2017,1150522,3587.50,114657,VIVID RESOURCING LIMITED,06459262                 ,PLANNING SERVICES,12610,Agency/Contract Staff,Internal Trading Cost Centres
Swale Borough Council,29UM,10/05/2017,1150546,824.00,103050,WESTCOUNTRY GROUP,4314613                  ,PROPERTY SERVICES,44012,Stationery,Internal Trading Cost Centres
Swale Borough Council,29UM,10/05/2017,1150107,912.52,114220,WHISTL UK LIMITED,04417047                 ,REVENUE SERVICES,46023,Postage,Central Services to the Public
Swale Borough Council,29UM,10/05/2017,1150107,4.96,114220,WHISTL UK LIMITED,04417047                 ,PLANNING SERVICES,46023,Postage,Planning and Development Services
Swale Borough Council,29UM,10/05/2017,1150107,456.26,114220,WHISTL UK LIMITED,04417047                 ,REVENUE SERVICES,46023,Postage,Housing
Swale Borough Council,29UM,10/05/2017,1150107,16.02,114220,WHISTL UK LIMITED,04417047                 ,LEISURE & OPEN SPACES,46023,Postage,Internal Trading Cost Centres
Swale Borough Council,29UM,10/05/2017,1150107,16.46,114220,WHISTL UK LIMITED,04417047                 ,CAR PARKS,46023,Postage,Internal Trading Cost Centres
Swale Borough Council,29UM,10/05/2017,1150107,39.75,114220,WHISTL UK LIMITED,04417047                 ,PROPERTY SERVICES,46023,Postage,Holding Codes
Swale Borough Council,29UM,10/05/2017,1150107,248.38,114220,WHISTL UK LIMITED,04417047                 ,DEMOCRATIC & ELECTORAL SERVICES,46023,Postage,Central Services to the Public
Swale Borough Council,29UM,10/05/2017,1150241,494.38,114220,WHISTL UK LIMITED,04417047                 ,REVENUE SERVICES,46023,Postage,Central Services to the Public
Swale Borough Council,29UM,10/05/2017,1150241,2.27,114220,WHISTL UK LIMITED,04417047                 ,PLANNING SERVICES,46023,Postage,Planning and Development Services
Swale Borough Council,29UM,10/05/2017,1150241,247.19,114220,WHISTL UK LIMITED,04417047                 ,REVENUE SERVICES,46023,Postage,Housing
Swale Borough Council,29UM,10/05/2017,1150241,14.44,114220,WHISTL UK LIMITED,04417047                 ,LEISURE & OPEN SPACES,46023,Postage,Internal Trading Cost Centres
Swale Borough Council,29UM,10/05/2017,1150241,15.42,114220,WHISTL UK LIMITED,04417047                 ,CAR PARKS,46023,Postage,Internal Trading Cost Centres
Swale Borough Council,29UM,10/05/2017,1150241,490.57,114220,WHISTL UK LIMITED,04417047                 ,PROPERTY SERVICES,46023,Postage,Holding Codes
Swale Borough Council,29UM,10/05/2017,1150241,76.85,114220,WHISTL UK LIMITED,04417047                 ,DEMOCRATIC & ELECTORAL SERVICES,46023,Postage,Central Services to the Public
Swale Borough Council,29UM,10/05/2017,1150395,576.14,114220,WHISTL UK LIMITED,04417047                 ,REVENUE SERVICES,46023,Postage,Central Services to the Public
Swale Borough Council,29UM,10/05/2017,1150395,3.27,114220,WHISTL UK LIMITED,04417047                 ,PLANNING SERVICES,46023,Postage,Planning and Development Services
Swale Borough Council,29UM,10/05/2017,1150395,288.07,114220,WHISTL UK LIMITED,04417047                 ,REVENUE SERVICES,46023,Postage,Housing
Swale Borough Council,29UM,10/05/2017,1150395,0.81,114220,WHISTL UK LIMITED,04417047                 ,LEISURE & OPEN SPACES,46023,Postage,Internal Trading Cost Centres
Swale Borough Council,29UM,10/05/2017,1150395,13.11,114220,WHISTL UK LIMITED,04417047                 ,CAR PARKS,46023,Postage,Internal Trading Cost Centres
Swale Borough Council,29UM,10/05/2017,1150395,36.17,114220,WHISTL UK LIMITED,04417047                 ,PROPERTY SERVICES,46023,Postage,Holding Codes
Swale Borough Council,29UM,10/05/2017,1150395,62.00,114220,WHISTL UK LIMITED,04417047                 ,DEMOCRATIC & ELECTORAL SERVICES,46023,Postage,Central Services to the Public
Swale Borough Council,29UM,10/05/2017,1150369,285.00,113531,WILLOW TREE HOME SOLUTIONS LTD,                         ,HOUSING SERVICES,21312,Staying Put small repairs (contractors),Housing
Swale Borough Council,29UM,10/05/2017,1150420,312.00,113531,WILLOW TREE HOME SOLUTIONS LTD,                         ,HOUSING SERVICES,21312,Staying Put small repairs (contractors),Housing
Swale Borough Council,29UM,10/05/2017,1150423,258.00,113531,WILLOW TREE HOME SOLUTIONS LTD,                         ,HOUSING SERVICES,21312,Staying Put small repairs (contractors),Housing
Swale Borough Council,29UM,10/05/2017,1150610,480.00,113531,WILLOW TREE HOME SOLUTIONS LTD,                         ,HOUSING SERVICES,21312,Staying Put small repairs (contractors),Housing
Swale Borough Council,29UM,10/05/2017,1150644,5470.32,113531,WILLOW TREE HOME SOLUTIONS LTD,                         ,HOUSING SERVICES,04005,Housing Renovation Grants,Not used in this Structure
Swale Borough Council,29UM,17/05/2017,1150349,4225.00,113863,ABAVUS LTD,6082412                  ,CONTRACT & PROCUREMENT,40110,Equipment Purchase,Internal Trading Cost Centres
Swale Borough Council,29UM,17/05/2017,1150774,970.00,114821,ABBEYVIEW PROPERTIES,                         ,HOUSING SERVICES,45080,RDS - Landlord claim on Bond Scheme,Housing
Swale Borough Council,29UM,17/05/2017,1150392,6000.00,114603,ALPHA MECHANICAL CONTRACTORS LTD,10247265                 ,COMMUNITY SAFETY,04009,Capital Constuction - CIS Works,Not used in this Structure
Swale Borough Council,29UM,17/05/2017,1150392,4476.00,114603,ALPHA MECHANICAL CONTRACTORS LTD,10247265                 ,COMMUNITY SAFETY,04009,Capital Constuction - CIS Works,Not used in this Structure
Swale Borough Council,29UM,17/05/2017,1150750,52.00,110794,ASHFORD CLEANING CONTRACTORS LTD,                         ,PROPERTY SERVICES,21011,Service Contracts,Cultural and Related Services
Swale Borough Council,29UM,17/05/2017,1150750,50.00,110794,ASHFORD CLEANING CONTRACTORS LTD,                         ,COMMUNITY SAFETY,21011,Service Contracts,Cultural and Related Services
Swale Borough Council,29UM,17/05/2017,1150750,26.00,110794,ASHFORD CLEANING CONTRACTORS LTD,                         ,COMMUNITY SAFETY,21011,Service Contracts,Cultural and Related Services
Swale Borough Council,29UM,17/05/2017,1150750,310.00,110794,ASHFORD CLEANING CONTRACTORS LTD,                         ,PROPERTY SERVICES,21011,Service Contracts,Corporate & Democratic Core
Swale Borough Council,29UM,17/05/2017,1150751,310.00,110794,ASHFORD CLEANING CONTRACTORS LTD,                         ,PROPERTY SERVICES,21011,Service Contracts,Corporate & Democratic Core
Swale Borough Council,29UM,17/05/2017,1150653,3488.00,113641,BBM SUSTAINABLE DESIGN LTD,4597504                  ,COMMUNITY SAFETY,04006,Capitalised Fees And Charges,Not used in this Structure
Swale Borough Council,29UM,17/05/2017,1150468,29185.35,113831,BMR CONSTRUCTION LTD,08434080                 ,COMMUNITY SAFETY,04006,Capitalised Fees And Charges,Not used in this Structure
Swale Borough Council,29UM,17/05/2017,1148677,-4632.52,104612,BT REDCARE,1800000                  ,COMMUNITY SAFETY,46048,CCTV Line Rental,Environmental and Regulatory Services
Swale Borough Council,29UM,17/05/2017,1149166,707.66,104612,BT REDCARE,1800000                  ,COMMUNITY SAFETY,46048,CCTV Line Rental,Environmental and Regulatory Services
Swale Borough Council,29UM,17/05/2017,1149920,2884.10,104612,BT REDCARE,1800000                  ,COMMUNITY SAFETY,46048,CCTV Line Rental,Environmental and Regulatory Services
Swale Borough Council,29UM,17/05/2017,1149921,895.16,104612,BT REDCARE,1800000                  ,COMMUNITY SAFETY,46048,CCTV Line Rental,Environmental and Regulatory Services
Swale Borough Council,29UM,17/05/2017,1150746,20939.99,104612,BT REDCARE,1800000                  ,COMMUNITY SAFETY,46048,CCTV Line Rental,Environmental and Regulatory Services
Swale Borough Council,29UM,17/05/2017,1150652,4612.07,112288,COMENSURA LTD,04085767                 ,HUMAN RESOURCES,12610,Agency/Contract Staff,Internal Trading Cost Centres
Swale Borough Council,29UM,17/05/2017,1149854,660.00,112069,DISCLOSURE & BARRING SERVICE (DT),                         ,LICENCING,45001,Fees And Services,Environmental and Regulatory Services
Swale Borough Council,29UM,17/05/2017,1150532,308.00,112069,DISCLOSURE & BARRING SERVICE (DT),                         ,LICENCING,45001,Fees And Services,Environmental and Regulatory Services
Swale Borough Council,29UM,17/05/2017,1150401,2720.00,113319,HERITAGE BLAST CLEANING LTD,08139099                 ,LEISURE & OPEN SPACES,21200,Maintenance - Grounds,Environmental and Regulatory Services
Swale Borough Council,29UM,17/05/2017,1150513,23667.00,114587,HERITAGE STONE RESTORATION CO. LIMITED,1877637                  ,LEISURE & OPEN SPACES,21010,Buildings Maintenance,Environmental and Regulatory Services
Swale Borough Council,29UM,17/05/2017,1150820,4047.50,108368,HIGHER ELEVATION LTD,                         ,HOUSING SERVICES,04005,Housing Renovation Grants,Not used in this Structure
Swale Borough Council,29UM,17/05/2017,1150775,438.00,102743,HUBBARD & HOUGHTON CONSTRUCTION LTD,                         ,HOUSING SERVICES,21312,Staying Put small repairs (contractors),Housing
Swale Borough Council,29UM,17/05/2017,1150817,5400.00,102743,HUBBARD & HOUGHTON CONSTRUCTION LTD,                         ,HOUSING SERVICES,04005,Housing Renovation Grants,Not used in this Structure
Swale Borough Council,29UM,17/05/2017,1150818,1438.70,102743,HUBBARD & HOUGHTON CONSTRUCTION LTD,                         ,HOUSING SERVICES,04005,Housing Renovation Grants,Not used in this Structure
Swale Borough Council,29UM,17/05/2017,1150772,1406.25,112148,INSPIRING BUSINESS PERFORMANCE LTD,7137232                  ,MKS LEGAL SERVICES,48010,Grants & Subscriptions,Internal Trading Cost Centres
Swale Borough Council,29UM,17/05/2017,1150702,445.00,112093,INSTITUTE OF CEMETERY & CREM MGMT,                         ,LEISURE & OPEN SPACES,48010,Grants & Subscriptions,Environmental and Regulatory Services
Swale Borough Council,29UM,17/05/2017,1150715,2363.00,113990,JGP RESOURCING LIMITED,07750971                 ,HUMAN RESOURCES,13201,Recruitment Adverts - Staff,Internal Trading Cost Centres
Swale Borough Council,29UM,17/05/2017,1150773,900.00,110120,REDACTED PERSONAL INFORMATION,                         ,HOUSING SERVICES,45080,RDS - Landlord claim on Bond Scheme,Housing
Swale Borough Council,29UM,17/05/2017,1150716,5000.00,110706,KENT COMMUNITY HEALTH NHS TRUST,                         ,TOURISM & SPORTS DEVELOPMENT,45001,Fees And Services,Cultural and Related Services
Swale Borough Council,29UM,17/05/2017,1150640,3504.47,102113,KENT COUNTY COUNCIL (KCS),                         ,PROPERTY SERVICES,22020,Electricity,Corporate & Democratic Core
Swale Borough Council,29UM,17/05/2017,1150708,2038.90,102113,KENT COUNTY COUNCIL (KCS),                         ,PROPERTY SERVICES,22030,Gas,Corporate & Democratic Core
Swale Borough Council,29UM,17/05/2017,1150577,285.60,102115,KENT MESSENGER LTD,505554                   ,COMMUNICATIONS,49003,Advertising & Promotion,Internal Trading Cost Centres
Swale Borough Council,29UM,17/05/2017,1150320,600.00,110818,LEMAR LIMITED,04350292                 ,LEISURE & OPEN SPACES,21310,Sheerness Paddling Pool Maintenance,Cultural and Related Services
Swale Borough Council,29UM,17/05/2017,1150320,648.00,110818,LEMAR LIMITED,04350292                 ,LEISURE & OPEN SPACES,21310,Sheerness Paddling Pool Maintenance,Cultural and Related Services
Swale Borough Council,29UM,17/05/2017,1150321,300.00,110818,LEMAR LIMITED,04350292                 ,LEISURE & OPEN SPACES,21310,Sheerness Paddling Pool Maintenance,Cultural and Related Services
Swale Borough Council,29UM,17/05/2017,1150321,75.00,110818,LEMAR LIMITED,04350292                 ,LEISURE & OPEN SPACES,21310,Sheerness Paddling Pool Maintenance,Cultural and Related Services
Swale Borough Council,29UM,17/05/2017,1150331,1000.00,110818,LEMAR LIMITED,04350292                 ,LEISURE & OPEN SPACES,04009,Capital Constuction - CIS Works,Not used in this Structure
Swale Borough Council,29UM,17/05/2017,1150331,1226.00,110818,LEMAR LIMITED,04350292                 ,LEISURE & OPEN SPACES,04009,Capital Constuction - CIS Works,Not used in this Structure
Swale Borough Council,29UM,17/05/2017,1150332,1000.00,110818,LEMAR LIMITED,04350292                 ,LEISURE & OPEN SPACES,04009,Capital Constuction - CIS Works,Not used in this Structure
Swale Borough Council,29UM,17/05/2017,1150332,1361.75,110818,LEMAR LIMITED,04350292                 ,LEISURE & OPEN SPACES,04009,Capital Constuction - CIS Works,Not used in this Structure
Swale Borough Council,29UM,17/05/2017,1150333,400.00,110818,LEMAR LIMITED,04350292                 ,CAR PARKS,21201,Resurfacing,Highway and Transport Services
Swale Borough Council,29UM,17/05/2017,1150333,295.00,110818,LEMAR LIMITED,04350292                 ,CAR PARKS,21201,Resurfacing,Highway and Transport Services
Swale Borough Council,29UM,17/05/2017,1150567,300.00,110818,LEMAR LIMITED,04350292                 ,SERVICE DELIVERY,53110,Private Contractors - CIS,Environmental and Regulatory Services
Swale Borough Council,29UM,17/05/2017,1150567,50.00,110818,LEMAR LIMITED,04350292                 ,SERVICE DELIVERY,53110,Private Contractors - CIS,Environmental and Regulatory Services
Swale Borough Council,29UM,17/05/2017,1150568,395.00,110818,LEMAR LIMITED,04350292                 ,LEISURE & OPEN SPACES,21200,Maintenance - Grounds,Environmental and Regulatory Services
Swale Borough Council,29UM,17/05/2017,1150568,300.00,110818,LEMAR LIMITED,04350292                 ,LEISURE & OPEN SPACES,21200,Maintenance - Grounds,Cultural and Related Services
Swale Borough Council,29UM,17/05/2017,1150813,800.00,110818,LEMAR LIMITED,04350292                 ,LEISURE & OPEN SPACES,21310,Sheerness Paddling Pool Maintenance,Cultural and Related Services
Swale Borough Council,29UM,17/05/2017,1150813,200.00,110818,LEMAR LIMITED,04350292                 ,LEISURE & OPEN SPACES,21200,Maintenance - Grounds,Cultural and Related Services
Swale Borough Council,29UM,17/05/2017,1150813,50.00,110818,LEMAR LIMITED,04350292                 ,SERVICE DELIVERY,53110,Private Contractors - CIS,Highway and Transport Services
Swale Borough Council,29UM,17/05/2017,1150558,280.00,113637,LILAC ESTATES,                         ,HOUSING SERVICES,45009,B & B - Landlords Payments,Housing
Swale Borough Council,29UM,17/05/2017,1150559,280.00,113637,LILAC ESTATES,                         ,HOUSING SERVICES,45009,B & B - Landlords Payments,Housing
Swale Borough Council,29UM,17/05/2017,1150698,389375.47,102121,LOWER MEDWAY INTERNAL DRAINAGE BO,                         ,FINANCIAL SERVICES,52012,Lmidb - Drainage Rates,Other Operating Expenditure
Swale Borough Council,29UM,17/05/2017,1150432,589.00,106610,MAYLOW CONSTRUCTION LTD,                         ,LEISURE & OPEN SPACES,21200,Maintenance - Grounds,Environmental and Regulatory Services
Swale Borough Council,29UM,17/05/2017,1150461,495.00,106610,MAYLOW CONSTRUCTION LTD,                         ,LEISURE & OPEN SPACES,21200,Maintenance - Grounds,Cultural and Related Services
Swale Borough Council,29UM,17/05/2017,1150585,388.00,106610,MAYLOW CONSTRUCTION LTD,                         ,LEISURE & OPEN SPACES,21200,Maintenance - Grounds,Cultural and Related Services
Swale Borough Council,29UM,17/05/2017,1150586,952.00,106610,MAYLOW CONSTRUCTION LTD,                         ,LEISURE & OPEN SPACES,21200,Maintenance - Grounds,Cultural and Related Services
Swale Borough Council,29UM,17/05/2017,1150768,1200.00,105696,MEGADALE ESTATES,                         ,HOUSING SERVICES,45074,RDS - Rent in Advance (Supporting People),Housing
Swale Borough Council,29UM,17/05/2017,1150769,865.00,105696,MEGADALE ESTATES,                         ,HOUSING SERVICES,45080,RDS - Landlord claim on Bond Scheme,Housing
Swale Borough Council,29UM,17/05/2017,1150534,2129.24,106081,METRIC GROUP LTD,2560839                  ,CAR PARKS,40100,Equipment Maintenance,Highway and Transport Services
Swale Borough Council,29UM,17/05/2017,1150686,335.00,106081,METRIC GROUP LTD,2560839                  ,CAR PARKS,40100,Equipment Maintenance,Highway and Transport Services
Swale Borough Council,29UM,17/05/2017,1150683,831.36,102132,MIDLANDS SIGNS LEICESTER LTD,1778323                  ,SERVICE DELIVERY,53110,Private Contractors - CIS,Highway and Transport Services
Swale Borough Council,29UM,17/05/2017,1150684,471.20,102132,MIDLANDS SIGNS LEICESTER LTD,1778323                  ,SERVICE DELIVERY,53110,Private Contractors - CIS,Highway and Transport Services
Swale Borough Council,29UM,17/05/2017,1150656,1019.00,109783,MOBILE MINI,2862423                  ,DEMOCRATIC & ELECTORAL SERVICES,23210,Hire Of Premises,Ledger/Suspense Codes
Swale Borough Council,29UM,17/05/2017,1150657,814.80,109783,MOBILE MINI,2862423                  ,DEMOCRATIC & ELECTORAL SERVICES,23210,Hire Of Premises,Ledger/Suspense Codes
Swale Borough Council,29UM,17/05/2017,1150633,4713.10,113841,MPS MARKETING SERVICES LIMITED,6360656                  ,DEMOCRATIC & ELECTORAL SERVICES,44010,Printing - External Funded by Grant & Other Income,Ledger/Suspense Codes
Swale Borough Council,29UM,17/05/2017,1150634,5023.97,113841,MPS MARKETING SERVICES LIMITED,6360656                  ,DEMOCRATIC & ELECTORAL SERVICES,44010,Printing - External Funded by Grant & Other Income,Ledger/Suspense Codes
Swale Borough Council,29UM,17/05/2017,1150435,3000.00,107205,MR J W GATES,                         ,SERVICE DELIVERY,53110,Private Contractors - CIS,Environmental and Regulatory Services
Swale Borough Council,29UM,17/05/2017,1150496,234.40,107205,MR J W GATES,                         ,SERVICE DELIVERY,21200,Maintenance - Grounds,Cultural and Related Services
Swale Borough Council,29UM,17/05/2017,1150496,50.00,107205,MR J W GATES,                         ,SERVICE DELIVERY,21200,Maintenance - Grounds,Cultural and Related Services
Swale Borough Council,29UM,17/05/2017,1150496,15.60,107205,MR J W GATES,                         ,SERVICE DELIVERY,21200,Maintenance - Grounds,Cultural and Related Services
Swale Borough Council,29UM,17/05/2017,1150701,459.00,107205,MR J W GATES,                         ,LEISURE & OPEN SPACES,21200,Maintenance - Grounds,Cultural and Related Services
Swale Borough Council,29UM,17/05/2017,1150752,463.20,107205,MR J W GATES,                         ,SERVICE DELIVERY,21200,Maintenance - Grounds,Cultural and Related Services
Swale Borough Council,29UM,17/05/2017,1150752,186.80,107205,MR J W GATES,                         ,SERVICE DELIVERY,21200,Maintenance - Grounds,Cultural and Related Services
Swale Borough Council,29UM,17/05/2017,1150613,1500.00,111802,REDACTED PERSONAL INFORMATION,                         ,PLANNING SERVICES,45012,Legal Fees,Internal Trading Cost Centres
Swale Borough Council,29UM,17/05/2017,1150720,269.27,112691,NPOWER,                         ,CAR PARKS,22020,Electricity,Highway and Transport Services
Swale Borough Council,29UM,17/05/2017,1150722,250.92,112691,NPOWER,                         ,LEISURE & OPEN SPACES,22020,Electricity,Cultural and Related Services
Swale Borough Council,29UM,17/05/2017,1150710,1104.02,103659,O2 (UK) LTD,1743099                  ,MKS ICT,46040,Telephone,Corporate & Democratic Core
Swale Borough Council,29UM,17/05/2017,1150710,0.04,103659,O2 (UK) LTD,1743099                  ,MKS ICT,46040,Telephone,Corporate & Democratic Core
Swale Borough Council,29UM,17/05/2017,1150226,9064.66,114623,OVENDEN ALLWORKS LIMITED,08052607                 ,SERVICE DELIVERY,04002,Construction,Not used in this Structure
Swale Borough Council,29UM,17/05/2017,1150630,15626.25,114623,OVENDEN ALLWORKS LIMITED,08052607                 ,LEISURE & OPEN SPACES,04002,Construction,Not used in this Structure
Swale Borough Council,29UM,17/05/2017,1150617,3976.50,111172,P BINNIE CONSULTANCY LTD,07794784                 ,ECONOMIC DEVELOPMENT,45004,Consultancy/Specialist Advice,Planning and Development Services
Swale Borough Council,29UM,17/05/2017,1150846,15697.00,114140,PEAC HOLDINGS (UK) LTD (DT),3088213                  ,LEISURE & OPEN SPACES,53020,Contracts,Cultural and Related Services
Swale Borough Council,29UM,17/05/2017,1150847,15697.00,114140,PEAC HOLDINGS (UK) LTD (DT),3088213                  ,LEISURE & OPEN SPACES,53020,Contracts,Cultural and Related Services
Swale Borough Council,29UM,17/05/2017,1150581,302.30,113748,QS CONSULT,                         ,COMMUNITY SAFETY,04006,Capitalised Fees And Charges,Not used in this Structure
Swale Borough Council,29UM,17/05/2017,1150734,3935.35,108791,ROYAL MAIL GROUP LTD,4138203                  ,DEMOCRATIC & ELECTORAL SERVICES,46023,Postage,Ledger/Suspense Codes
Swale Borough Council,29UM,17/05/2017,1150844,2968.00,109470,SERCO PAISA LTD - (DT),04908482                 ,LEISURE & OPEN SPACES,53020,Contracts,Cultural and Related Services
Swale Borough Council,29UM,17/05/2017,1150845,2968.00,109470,SERCO PAISA LTD - (DT),04908482                 ,LEISURE & OPEN SPACES,53020,Contracts,Cultural and Related Services
Swale Borough Council,29UM,17/05/2017,1150433,1069.76,114068,SOUTH EAST LABELS,                         ,CONTRACT & PROCUREMENT,49035,Waste and Recycling Promotion / Comm's Projects,Environmental and Regulatory Services
Swale Borough Council,29UM,17/05/2017,1150580,3032.42,110703,SOUTHERN COMMUNICATIONS LTD,1328040                  ,MKS ICT,46040,Telephone,Corporate & Democratic Core
Swale Borough Council,29UM,17/05/2017,1150571,1100.00,113291,SYNERGY CONST & PROP CONSULT,                         ,COMMUNITY SAFETY,04006,Capitalised Fees And Charges,Not used in this Structure
Swale Borough Council,29UM,17/05/2017,1150804,740.00,113659,THROWLEY PARISH COUNCIL,                         ,TOURISM & SPORTS DEVELOPMENT,48010,Grants & Subscriptions,Cultural and Related Services
Swale Borough Council,29UM,17/05/2017,1150696,1254.75,106930,TOTAL PRINT FINISHING SERVICES LTD,3045552                  ,PROPERTY SERVICES,40100,Equipment Maintenance,Internal Trading Cost Centres
Swale Borough Council,29UM,17/05/2017,1150606,1630.00,111613,TRAFALGAR TAVERN LTD,07999329                 ,HOUSING SERVICES,45009,B & B - Landlords Payments,Housing
Swale Borough Council,29UM,17/05/2017,1150607,1440.00,111613,TRAFALGAR TAVERN LTD,07999329                 ,HOUSING SERVICES,45009,B & B - Landlords Payments,Housing
Swale Borough Council,29UM,17/05/2017,1150480,1050.00,110054,UNIT4 BUSINESS SOFTWARE LIMITED,1737985                  ,FINANCIAL SERVICES,46140,Computer Equipment & Materials,Internal Trading Cost Centres
Swale Borough Council,29UM,17/05/2017,1150735,-545.66,110054,UNIT4 BUSINESS SOFTWARE LIMITED,1737985                  ,FINANCIAL SERVICES,46140,Computer Equipment & Materials,Internal Trading Cost Centres
Swale Borough Council,29UM,17/05/2017,1150791,390.00,105249,VANGUARD CONSULTING LIMITED,2207133                  ,CHIEF EXECUTIVE,47110,Conference,Internal Trading Cost Centres
Swale Borough Council,29UM,17/05/2017,1150706,560.00,105026,VENN GROUP LIMITED,                         ,MKS LEGAL SERVICES,12610,Agency/Contract Staff,Internal Trading Cost Centres
Swale Borough Council,29UM,17/05/2017,1150783,1625.00,113531,WILLOW TREE HOME SOLUTIONS LTD,                         ,HOUSING SERVICES,21312,Staying Put small repairs (contractors),Housing
Swale Borough Council,29UM,17/05/2017,1150819,6777.20,113531,WILLOW TREE HOME SOLUTIONS LTD,                         ,HOUSING SERVICES,04005,Housing Renovation Grants,Not used in this Structure
Swale Borough Council,29UM,24/05/2017,1150544,2893.99,114690,ALLPAY LTD,02933191                 ,REVENUE SERVICES,74031,Bank Charges Pay Point,Central Services to the Public
Swale Borough Council,29UM,24/05/2017,1150544,43.70,114690,ALLPAY LTD,02933191                 ,REVENUE SERVICES,74031,Bank Charges Pay Point,Central Services to the Public
Swale Borough Council,29UM,24/05/2017,1150544,54.37,114690,ALLPAY LTD,02933191                 ,REVENUE SERVICES,74031,Bank Charges Pay Point,Housing
Swale Borough Council,29UM,24/05/2017,1150544,2.30,114690,ALLPAY LTD,02933191                 ,REVENUE SERVICES,74031,Bank Charges Pay Point,Housing
Swale Borough Council,29UM,24/05/2017,1150544,40.45,114690,ALLPAY LTD,02933191                 ,EXCHEQUER,74031,Bank Charges Pay Point,Internal Trading Cost Centres
Swale Borough Council,29UM,24/05/2017,1150905,475.45,107161,BARCHAM TREES PLC,2980323                  ,LEISURE & OPEN SPACES,21205,Nursery Stock,Cultural and Related Services
Swale Borough Council,29UM,24/05/2017,1150802,6000.00,109758,BATES JPW ADVERTISING LTD,784540                   ,MKS LEGAL SERVICES,13201,Recruitment Adverts - Staff,Internal Trading Cost Centres
Swale Borough Council,29UM,24/05/2017,1150902,261.00,102846,BRITISH GAS TRADING LTD,                         ,COMMUNITY SAFETY,22030,Gas,Cultural and Related Services
Swale Borough Council,29UM,24/05/2017,1150766,1085.00,110130,BT DEVELOPMENTS,                         ,HOUSING SERVICES,45009,B & B - Landlords Payments,Housing
Swale Borough Council,29UM,24/05/2017,1150850,625.46,104612,BT REDCARE,1800000                  ,COMMUNITY SAFETY,46048,CCTV Line Rental,Environmental and Regulatory Services
Swale Borough Council,29UM,24/05/2017,1150748,1369.00,114576,CARRINGTON WEST LIMITED,07344853                 ,PLANNING SERVICES,12610,Agency/Contract Staff,Internal Trading Cost Centres
Swale Borough Council,29UM,24/05/2017,1150807,661.08,102623,CD SUPPLIES LTD,                         ,LEISURE & OPEN SPACES,21200,Maintenance - Grounds,Cultural and Related Services
Swale Borough Council,29UM,24/05/2017,1150953,5607.95,114483,COLDWELL CONSTRUCTION LTD,4814340                  ,HOUSING SERVICES,04005,Housing Renovation Grants,Not used in this Structure
Swale Borough Council,29UM,24/05/2017,1150794,500.00,102036,DAVINGTON COUNTY PRIMARY SCHOOL,                         ,DEMOCRATIC & ELECTORAL SERVICES,23210,Hire Of Premises,Ledger/Suspense Codes
Swale Borough Council,29UM,24/05/2017,1150858,22.50,113971,DCB (KENT) LIMITED,03532339                 ,PROPERTY SERVICES,21016,Non-Planned Building Maintenance,Corporate & Democratic Core
Swale Borough Council,29UM,24/05/2017,1150858,11.25,113971,DCB (KENT) LIMITED,03532339                 ,PROPERTY SERVICES,21016,Non-Planned Building Maintenance,Corporate & Democratic Core
Swale Borough Council,29UM,24/05/2017,1150858,95.20,113971,DCB (KENT) LIMITED,03532339                 ,CONTRACT & PROCUREMENT,21016,Non-Planned Building Maintenance,Environmental and Regulatory Services
Swale Borough Council,29UM,24/05/2017,1150858,138.96,113971,DCB (KENT) LIMITED,03532339                 ,LEISURE & OPEN SPACES,21016,Non-Planned Building Maintenance,Cultural and Related Services
Swale Borough Council,29UM,24/05/2017,1150858,288.05,113971,DCB (KENT) LIMITED,03532339                 ,ECONOMY & COMMUNITIES,21016,Non-Planned Building Maintenance,Cultural and Related Services
Swale Borough Council,29UM,24/05/2017,1150381,6105.98,113116,EIBE PLAY LTD,                         ,LEISURE & OPEN SPACES,40100,Equipment Maintenance,Cultural and Related Services
Swale Borough Council,29UM,24/05/2017,1150297,1500.00,114598,FMC (FABRICS & MAINT CONT) LTD,07509198                 ,COMMUNITY SAFETY,04009,Capital Constuction - CIS Works,Not used in this Structure
Swale Borough Council,29UM,24/05/2017,1150297,3560.23,114598,FMC (FABRICS & MAINT CONT) LTD,07509198                 ,COMMUNITY SAFETY,04009,Capital Constuction - CIS Works,Not used in this Structure
Swale Borough Council,29UM,24/05/2017,1150297,-151.81,114598,FMC (FABRICS & MAINT CONT) LTD,07509198                 ,COMMUNITY SAFETY,04009,Capital Constuction - CIS Works,Not used in this Structure
Swale Borough Council,29UM,24/05/2017,1150298,1500.00,114598,FMC (FABRICS & MAINT CONT) LTD,07509198                 ,COMMUNITY SAFETY,04009,Capital Constuction - CIS Works,Not used in this Structure
Swale Borough Council,29UM,24/05/2017,1150298,4441.89,114598,FMC (FABRICS & MAINT CONT) LTD,07509198                 ,COMMUNITY SAFETY,04009,Capital Constuction - CIS Works,Not used in this Structure
Swale Borough Council,29UM,24/05/2017,1150298,-178.26,114598,FMC (FABRICS & MAINT CONT) LTD,07509198                 ,COMMUNITY SAFETY,04009,Capital Constuction - CIS Works,Not used in this Structure
Swale Borough Council,29UM,24/05/2017,1150299,800.00,114598,FMC (FABRICS & MAINT CONT) LTD,07509198                 ,COMMUNITY SAFETY,04009,Capital Constuction - CIS Works,Not used in this Structure
Swale Borough Council,29UM,24/05/2017,1150299,1308.96,114598,FMC (FABRICS & MAINT CONT) LTD,07509198                 ,COMMUNITY SAFETY,04009,Capital Constuction - CIS Works,Not used in this Structure
Swale Borough Council,29UM,24/05/2017,1150299,-63.27,114598,FMC (FABRICS & MAINT CONT) LTD,07509198                 ,COMMUNITY SAFETY,04009,Capital Constuction - CIS Works,Not used in this Structure
Swale Borough Council,29UM,24/05/2017,1150300,1000.00,114598,FMC (FABRICS & MAINT CONT) LTD,07509198                 ,COMMUNITY SAFETY,04009,Capital Constuction - CIS Works,Not used in this Structure
Swale Borough Council,29UM,24/05/2017,1150300,1500.00,114598,FMC (FABRICS & MAINT CONT) LTD,07509198                 ,COMMUNITY SAFETY,04009,Capital Constuction - CIS Works,Not used in this Structure
Swale Borough Council,29UM,24/05/2017,1150300,-75.00,114598,FMC (FABRICS & MAINT CONT) LTD,07509198                 ,COMMUNITY SAFETY,04009,Capital Constuction - CIS Works,Not used in this Structure
Swale Borough Council,29UM,24/05/2017,1150301,701.00,114598,FMC (FABRICS & MAINT CONT) LTD,07509198                 ,COMMUNITY SAFETY,04009,Capital Constuction - CIS Works,Not used in this Structure
Swale Borough Council,29UM,24/05/2017,1150301,-210.30,114598,FMC (FABRICS & MAINT CONT) LTD,07509198                 ,COMMUNITY SAFETY,04009,Capital Constuction - CIS Works,Not used in this Structure
Swale Borough Council,29UM,24/05/2017,1150302,3000.00,114598,FMC (FABRICS & MAINT CONT) LTD,07509198                 ,COMMUNITY SAFETY,04009,Capital Constuction - CIS Works,Not used in this Structure
Swale Borough Council,29UM,24/05/2017,1150302,5141.79,114598,FMC (FABRICS & MAINT CONT) LTD,07509198                 ,COMMUNITY SAFETY,04009,Capital Constuction - CIS Works,Not used in this Structure
Swale Borough Council,29UM,24/05/2017,1150302,-813.95,114598,FMC (FABRICS & MAINT CONT) LTD,07509198                 ,COMMUNITY SAFETY,04009,Capital Constuction - CIS Works,Not used in this Structure
Swale Borough Council,29UM,24/05/2017,1150777,4445.14,102095,GLASDON U.K.LIMITED,2160576                  ,SERVICE DELIVERY,21200,Maintenance - Grounds,Cultural and Related Services
Swale Borough Council,29UM,24/05/2017,1150676,950.00,103381,HAYMARKET MEDIA GROUP LTD,                         ,PLANNING SERVICES,41010,"Books, Journals & e - resources",Planning and Development Services
Swale Borough Council,29UM,24/05/2017,1150950,4202.25,108368,HIGHER ELEVATION LTD,                         ,HOUSING SERVICES,04005,Housing Renovation Grants,Not used in this Structure
Swale Borough Council,29UM,24/05/2017,1150636,3675.00,111597,J N CLEARANCE,                         ,CONTRACT & PROCUREMENT,53005,"Clearance Of Waste,Fly Tipping",Environmental and Regulatory Services
Swale Borough Council,29UM,24/05/2017,1150917,974.00,111600,JACKSON LIFT SERVICES LTD,2186996                  ,PROPERTY SERVICES,21016,Non-Planned Building Maintenance,Corporate & Democratic Core
Swale Borough Council,29UM,24/05/2017,1150801,644.62,114049,LAMBERHURST ENGINEERING LTD,3595260                  ,LEISURE & OPEN SPACES,40110,Equipment Purchase,Cultural and Related Services
Swale Borough Council,29UM,24/05/2017,1150801,38.50,114049,LAMBERHURST ENGINEERING LTD,3595260                  ,LEISURE & OPEN SPACES,40110,Equipment Purchase,Cultural and Related Services
Swale Borough Council,29UM,24/05/2017,1150863,300.00,110818,LEMAR LIMITED,04350292                 ,LEISURE & OPEN SPACES,21310,Sheerness Paddling Pool Maintenance,Cultural and Related Services
Swale Borough Council,29UM,24/05/2017,1150863,785.00,110818,LEMAR LIMITED,04350292                 ,LEISURE & OPEN SPACES,21310,Sheerness Paddling Pool Maintenance,Cultural and Related Services
Swale Borough Council,29UM,24/05/2017,1150864,300.00,110818,LEMAR LIMITED,04350292                 ,LEISURE & OPEN SPACES,21200,Maintenance - Grounds,Cultural and Related Services
Swale Borough Council,29UM,24/05/2017,1150864,195.00,110818,LEMAR LIMITED,04350292                 ,LEISURE & OPEN SPACES,21200,Maintenance - Grounds,Cultural and Related Services
Swale Borough Council,29UM,24/05/2017,1150865,300.00,110818,LEMAR LIMITED,04350292                 ,SERVICE DELIVERY,53110,Private Contractors - CIS,Highway and Transport Services
Swale Borough Council,29UM,24/05/2017,1150865,240.00,110818,LEMAR LIMITED,04350292                 ,SERVICE DELIVERY,53110,Private Contractors - CIS,Highway and Transport Services
Swale Borough Council,29UM,24/05/2017,1150866,600.00,110818,LEMAR LIMITED,04350292                 ,SERVICE DELIVERY,53110,Private Contractors - CIS,Highway and Transport Services
Swale Borough Council,29UM,24/05/2017,1150866,350.00,110818,LEMAR LIMITED,04350292                 ,SERVICE DELIVERY,53110,Private Contractors - CIS,Highway and Transport Services
Swale Borough Council,29UM,24/05/2017,1150880,1500.00,110818,LEMAR LIMITED,04350292                 ,SERVICE DELIVERY,53110,Private Contractors - CIS,Highway and Transport Services
Swale Borough Council,29UM,24/05/2017,1150880,2300.00,110818,LEMAR LIMITED,04350292                 ,SERVICE DELIVERY,53110,Private Contractors - CIS,Highway and Transport Services
Swale Borough Council,29UM,24/05/2017,1150883,250.00,110818,LEMAR LIMITED,04350292                 ,SERVICE DELIVERY,53110,Private Contractors - CIS,Highway and Transport Services
Swale Borough Council,29UM,24/05/2017,1150883,82.00,110818,LEMAR LIMITED,04350292                 ,SERVICE DELIVERY,53110,Private Contractors - CIS,Highway and Transport Services
Swale Borough Council,29UM,24/05/2017,1150884,300.00,110818,LEMAR LIMITED,04350292                 ,SERVICE DELIVERY,53110,Private Contractors - CIS,Highway and Transport Services
Swale Borough Council,29UM,24/05/2017,1150884,272.00,110818,LEMAR LIMITED,04350292                 ,SERVICE DELIVERY,53110,Private Contractors - CIS,Highway and Transport Services
Swale Borough Council,29UM,24/05/2017,1150514,2280.00,112498,MAGEES GUESTHOUSE,                         ,HOUSING SERVICES,45009,B & B - Landlords Payments,Housing
Swale Borough Council,29UM,24/05/2017,1150661,1995.00,112498,MAGEES GUESTHOUSE,                         ,HOUSING SERVICES,45009,B & B - Landlords Payments,Housing
Swale Borough Council,29UM,24/05/2017,1150792,1995.00,112498,MAGEES GUESTHOUSE,                         ,HOUSING SERVICES,45009,B & B - Landlords Payments,Housing
Swale Borough Council,29UM,24/05/2017,1150611,33378.59,108467,MAIDSTONE BOROUGH COUNCIL,                         ,CONTRACT & PROCUREMENT,53010,Private Contractors,Environmental and Regulatory Services
Swale Borough Council,29UM,24/05/2017,1150612,15783.37,108467,MAIDSTONE BOROUGH COUNCIL,                         ,CONTRACT & PROCUREMENT,40110,Equipment Purchase,Environmental and Regulatory Services
Swale Borough Council,29UM,24/05/2017,1150707,1702.00,113371,MATCHTECH,4426336                  ,PLANNING SERVICES,12610,Agency/Contract Staff,Internal Trading Cost Centres
Swale Borough Council,29UM,24/05/2017,1150900,1656.00,113371,MATCHTECH,4426336                  ,PLANNING SERVICES,12610,Agency/Contract Staff,Internal Trading Cost Centres
Swale Borough Council,29UM,24/05/2017,1150949,835.00,114575,MCL (KENT) LIMITED,                         ,HOUSING SERVICES,04005,Housing Renovation Grants,Not used in this Structure
Swale Borough Council,29UM,24/05/2017,1150623,17434.56,114815,MONITOR CLEANING SERVICES LTD,02526388                 ,CONTRACT & PROCUREMENT,53010,Private Contractors,Environmental and Regulatory Services
Swale Borough Council,29UM,24/05/2017,1150940,750.00,110862,REDACTED PERSONAL INFORMATION,                         ,ENVIRONMENTAL RESPONSE TEAM,45012,Legal Fees,Internal Trading Cost Centres
Swale Borough Council,29UM,24/05/2017,1150940,150.00,110862,REDACTED PERSONAL INFORMATION,                         ,ENVIRONMENTAL RESPONSE TEAM,45012,Legal Fees,Internal Trading Cost Centres
Swale Borough Council,29UM,24/05/2017,1150941,800.00,110862,REDACTED PERSONAL INFORMATION,                         ,ENVIRONMENTAL RESPONSE TEAM,45012,Legal Fees,Internal Trading Cost Centres
Swale Borough Council,29UM,24/05/2017,1150941,160.00,110862,REDACTED PERSONAL INFORMATION,                         ,ENVIRONMENTAL RESPONSE TEAM,45012,Legal Fees,Internal Trading Cost Centres
Swale Borough Council,29UM,24/05/2017,1150816,500.00,114825,REDACTED PERSONAL INFORMATION,                         ,TOURISM & SPORTS DEVELOPMENT,48010,Grants & Subscriptions,Cultural and Related Services
Swale Borough Council,29UM,24/05/2017,1150618,640.00,113002,PINSENT MASONS LLP,OC333653                 ,ECONOMIC DEVELOPMENT,45004,Consultancy/Specialist Advice,Planning and Development Services
Swale Borough Council,29UM,24/05/2017,1150295,5321.17,113982,PITNEY BOWES SOFTWARE EUROPE LIMITED,01977325                 ,LEISURE & OPEN SPACES,40110,Equipment Purchase,Internal Trading Cost Centres
Swale Borough Council,29UM,24/05/2017,1150780,268.01,112614,PREMIER PAPER GROUP LTD,                         ,PROPERTY SERVICES,44014,Paper,Internal Trading Cost Centres
Swale Borough Council,29UM,24/05/2017,1150426,490.00,107168,REARDON PROPERTIES,                         ,HOUSING SERVICES,45009,B & B - Landlords Payments,Housing
Swale Borough Council,29UM,24/05/2017,1150427,755.00,107168,REARDON PROPERTIES,                         ,HOUSING SERVICES,45009,B & B - Landlords Payments,Housing
Swale Borough Council,29UM,24/05/2017,1150428,490.00,107168,REARDON PROPERTIES,                         ,HOUSING SERVICES,45009,B & B - Landlords Payments,Housing
Swale Borough Council,29UM,24/05/2017,1150429,735.00,107168,REARDON PROPERTIES,                         ,HOUSING SERVICES,45009,B & B - Landlords Payments,Housing
Swale Borough Council,29UM,24/05/2017,1150690,835.00,107168,REARDON PROPERTIES,                         ,HOUSING SERVICES,45009,B & B - Landlords Payments,Housing
Swale Borough Council,29UM,24/05/2017,1150691,350.00,107168,REARDON PROPERTIES,                         ,HOUSING SERVICES,45009,B & B - Landlords Payments,Housing
Swale Borough Council,29UM,24/05/2017,1150692,455.00,107168,REARDON PROPERTIES,                         ,HOUSING SERVICES,45009,B & B - Landlords Payments,Housing
Swale Borough Council,29UM,24/05/2017,1150694,665.00,107168,REARDON PROPERTIES,                         ,HOUSING SERVICES,45009,B & B - Landlords Payments,Housing
Swale Borough Council,29UM,24/05/2017,1150753,630.00,107168,REARDON PROPERTIES,                         ,HOUSING SERVICES,45009,B & B - Landlords Payments,Housing
Swale Borough Council,29UM,24/05/2017,1150754,490.00,107168,REARDON PROPERTIES,                         ,HOUSING SERVICES,45009,B & B - Landlords Payments,Housing
Swale Borough Council,29UM,24/05/2017,1150755,755.00,107168,REARDON PROPERTIES,                         ,HOUSING SERVICES,45009,B & B - Landlords Payments,Housing
Swale Borough Council,29UM,24/05/2017,1150756,490.00,107168,REARDON PROPERTIES,                         ,HOUSING SERVICES,45009,B & B - Landlords Payments,Housing
Swale Borough Council,29UM,24/05/2017,1150770,300.00,107168,REARDON PROPERTIES,                         ,HOUSING SERVICES,45080,RDS - Landlord claim on Bond Scheme,Housing
Swale Borough Council,29UM,24/05/2017,1150911,630.00,107168,REARDON PROPERTIES,                         ,HOUSING SERVICES,45009,B & B - Landlords Payments,Housing
Swale Borough Council,29UM,24/05/2017,1150912,490.00,107168,REARDON PROPERTIES,                         ,HOUSING SERVICES,45009,B & B - Landlords Payments,Housing
Swale Borough Council,29UM,24/05/2017,1150913,875.00,107168,REARDON PROPERTIES,                         ,HOUSING SERVICES,45009,B & B - Landlords Payments,Housing
Swale Borough Council,29UM,24/05/2017,1150914,490.00,107168,REARDON PROPERTIES,                         ,HOUSING SERVICES,45009,B & B - Landlords Payments,Housing
Swale Borough Council,29UM,24/05/2017,1150795,1215.00,104532,RICS BUSINESS SERVICES LTD,                         ,PLANNING SERVICES,45001,Fees And Services,Planning and Development Services
Swale Borough Council,29UM,24/05/2017,1150764,658.80,108791,ROYAL MAIL GROUP LTD,4138203                  ,REVENUE SERVICES,46023,Postage,Central Services to the Public
Swale Borough Council,29UM,24/05/2017,1150811,39632.10,112384,ROYAL NATIONAL LIFEBOAT INSTITUTION,209603                   ,SERVICE DELIVERY,53020,Contracts,Cultural and Related Services
Swale Borough Council,29UM,24/05/2017,1150927,500.00,104223,RULE AND RULE,                         ,HOUSING SERVICES,45074,RDS - Rent in Advance (Supporting People),Housing
Swale Borough Council,29UM,24/05/2017,1150876,750.00,112957,RUSHENDEN COMMUNITY HALL ASSOCIATION,                         ,COMMUNITY SAFETY,48010,Grants & Subscriptions,Central Services to the Public
Swale Borough Council,29UM,24/05/2017,1150689,23261.67,114818,SAINSBURYS SUPERMARKETS LIMITED,                         ,PLANNING SERVICES,05000,Payments in Year,Ledger/Suspense Codes
Swale Borough Council,29UM,24/05/2017,1150478,10994.80,105676,SERCO LEISURE OPERATING LIMITED,04687478                 ,LEISURE & OPEN SPACES,53013,Procurement Contracts Only,Cultural and Related Services
Swale Borough Council,29UM,24/05/2017,1150928,350.00,110017,SHARNWOOD DEVELOPMENTS LTD,                         ,HOUSING SERVICES,45005,Homelessness  Prevention Services,Housing
Swale Borough Council,29UM,24/05/2017,1150810,4800.73,113430,SHARP BUSINESS SYSTEMS UK,2136901                  ,MKS ICT,40111,Equipment Rental,Holding Codes
Swale Borough Council,29UM,24/05/2017,1150862,1121.25,102189,SHAW AND SONS LTD,                         ,DEMOCRATIC & ELECTORAL SERVICES,44012,Stationery,Ledger/Suspense Codes
Swale Borough Council,29UM,24/05/2017,1150809,9746.98,114682,SHIRE INTEGRATED SYSTEMS LIMITED,3088673                  ,COMMUNITY SAFETY,04009,Capital Constuction - CIS Works,Not used in this Structure
Swale Borough Council,29UM,24/05/2017,1150759,295.30,102257,SOUTHERN WATER SERVICES LIMITED,2366670                  ,HOUSING SERVICES,24010,Water - Rateable Value,Housing
Swale Borough Council,29UM,24/05/2017,1150922,470.00,104045,STANFORD & GREEN LIMITED,4691456                  ,REVENUE SERVICES,45042,Fees - Bailiffs,Central Services to the Public
Swale Borough Council,29UM,24/05/2017,1150499,5800.00,105702,SWALE COMMUNITY LEISURE LIMITED,31132R                   ,LEISURE & OPEN SPACES,53013,Procurement Contracts Only,Cultural and Related Services
Swale Borough Council,29UM,24/05/2017,1150500,12038.82,105702,SWALE COMMUNITY LEISURE LIMITED,31132R                   ,LEISURE & OPEN SPACES,53013,Procurement Contracts Only,Cultural and Related Services
Swale Borough Council,29UM,24/05/2017,1150501,8500.00,105702,SWALE COMMUNITY LEISURE LIMITED,31132R                   ,LEISURE & OPEN SPACES,53013,Procurement Contracts Only,Cultural and Related Services
Swale Borough Council,29UM,24/05/2017,1150553,12038.82,105702,SWALE COMMUNITY LEISURE LIMITED,31132R                   ,LEISURE & OPEN SPACES,53013,Procurement Contracts Only,Cultural and Related Services
Swale Borough Council,29UM,24/05/2017,1150687,2240.00,111033,THE OYSTER PARTNERSHIP,05020374                 ,PLANNING SERVICES,12610,Agency/Contract Staff,Internal Trading Cost Centres
Swale Borough Council,29UM,24/05/2017,1150871,1470.00,111033,THE OYSTER PARTNERSHIP,05020374                 ,PLANNING SERVICES,12610,Agency/Contract Staff,Internal Trading Cost Centres
Swale Borough Council,29UM,24/05/2017,1150473,1120.00,111613,TRAFALGAR TAVERN LTD,07999329                 ,HOUSING SERVICES,45009,B & B - Landlords Payments,Housing
Swale Borough Council,29UM,24/05/2017,1150608,1050.00,111613,TRAFALGAR TAVERN LTD,07999329                 ,HOUSING SERVICES,45009,B & B - Landlords Payments,Housing
Swale Borough Council,29UM,24/05/2017,1150749,1455.00,111613,TRAFALGAR TAVERN LTD,07999329                 ,HOUSING SERVICES,45009,B & B - Landlords Payments,Housing
Swale Borough Council,29UM,24/05/2017,1150806,1365.00,111613,TRAFALGAR TAVERN LTD,07999329                 ,HOUSING SERVICES,45009,B & B - Landlords Payments,Housing
Swale Borough Council,29UM,24/05/2017,1150924,1175.00,111613,TRAFALGAR TAVERN LTD,07999329                 ,HOUSING SERVICES,45009,B & B - Landlords Payments,Housing
Swale Borough Council,29UM,24/05/2017,1150793,107.67,105771,UK PAPER LEISURE CLUB,                         ,DEMOCRATIC & ELECTORAL SERVICES,23210,Hire Of Premises,Ledger/Suspense Codes
Swale Borough Council,29UM,24/05/2017,1150793,1000.00,105771,UK PAPER LEISURE CLUB,                         ,DEMOCRATIC & ELECTORAL SERVICES,23210,Hire Of Premises,Ledger/Suspense Codes
Swale Borough Council,29UM,24/05/2017,1150873,560.00,105026,VENN GROUP LIMITED,                         ,MKS LEGAL SERVICES,12610,Agency/Contract Staff,Internal Trading Cost Centres
Swale Borough Council,29UM,24/05/2017,1150695,987.00,114657,VIVID RESOURCING LIMITED,06459262                 ,PLANNING SERVICES,12610,Agency/Contract Staff,Internal Trading Cost Centres
Swale Borough Council,29UM,24/05/2017,1150874,1354.50,114657,VIVID RESOURCING LIMITED,06459262                 ,PLANNING SERVICES,12610,Agency/Contract Staff,Internal Trading Cost Centres
Swale Borough Council,29UM,24/05/2017,1150875,2327.50,114657,VIVID RESOURCING LIMITED,06459262                 ,PLANNING SERVICES,12610,Agency/Contract Staff,Internal Trading Cost Centres
Swale Borough Council,29UM,24/05/2017,1150529,522.05,114220,WHISTL UK LIMITED,04417047                 ,REVENUE SERVICES,46023,Postage,Central Services to the Public
Swale Borough Council,29UM,24/05/2017,1150529,2.74,114220,WHISTL UK LIMITED,04417047                 ,PLANNING SERVICES,46023,Postage,Planning and Development Services
Swale Borough Council,29UM,24/05/2017,1150529,261.02,114220,WHISTL UK LIMITED,04417047                 ,REVENUE SERVICES,46023,Postage,Housing
Swale Borough Council,29UM,24/05/2017,1150529,1.02,114220,WHISTL UK LIMITED,04417047                 ,LEISURE & OPEN SPACES,46023,Postage,Internal Trading Cost Centres
Swale Borough Council,29UM,24/05/2017,1150529,7.92,114220,WHISTL UK LIMITED,04417047                 ,CAR PARKS,46023,Postage,Internal Trading Cost Centres
Swale Borough Council,29UM,24/05/2017,1150529,0.34,114220,WHISTL UK LIMITED,04417047                 ,ECONOMIC DEVELOPMENT,46023,Postage,Internal Trading Cost Centres
Swale Borough Council,29UM,24/05/2017,1150529,53.83,114220,WHISTL UK LIMITED,04417047                 ,PROPERTY SERVICES,46023,Postage,Holding Codes
Swale Borough Council,29UM,24/05/2017,1150529,149.77,114220,WHISTL UK LIMITED,04417047                 ,DEMOCRATIC & ELECTORAL SERVICES,46023,Postage,Central Services to the Public
Swale Borough Council,29UM,24/05/2017,1150714,510.38,114220,WHISTL UK LIMITED,04417047                 ,REVENUE SERVICES,46023,Postage,Central Services to the Public
Swale Borough Council,29UM,24/05/2017,1150714,6.01,114220,WHISTL UK LIMITED,04417047                 ,PLANNING SERVICES,46023,Postage,Planning and Development Services
Swale Borough Council,29UM,24/05/2017,1150714,255.18,114220,WHISTL UK LIMITED,04417047                 ,REVENUE SERVICES,46023,Postage,Housing
Swale Borough Council,29UM,24/05/2017,1150714,0.82,114220,WHISTL UK LIMITED,04417047                 ,LEISURE & OPEN SPACES,46023,Postage,Internal Trading Cost Centres
Swale Borough Council,29UM,24/05/2017,1150714,26.23,114220,WHISTL UK LIMITED,04417047                 ,CAR PARKS,46023,Postage,Internal Trading Cost Centres
Swale Borough Council,29UM,24/05/2017,1150714,58.07,114220,WHISTL UK LIMITED,04417047                 ,PROPERTY SERVICES,46023,Postage,Holding Codes
Swale Borough Council,29UM,24/05/2017,1150714,70.13,114220,WHISTL UK LIMITED,04417047                 ,DEMOCRATIC & ELECTORAL SERVICES,46023,Postage,Central Services to the Public
Swale Borough Council,29UM,24/05/2017,1150897,450.00,114739,WHITE HORSE ECOLOGY,                         ,LEISURE & OPEN SPACES,45001,Fees And Services,Cultural and Related Services
Swale Borough Council,29UM,24/05/2017,1150458,8234.00,114424,WHITE RESIDENTIAL,                         ,HOUSING SERVICES,45009,B & B - Landlords Payments,Housing
Swale Borough Council,29UM,24/05/2017,1150851,740.00,113531,WILLOW TREE HOME SOLUTIONS LTD,                         ,HOUSING SERVICES,21312,Staying Put small repairs (contractors),Housing
Swale Borough Council,29UM,24/05/2017,1150886,260.00,113531,WILLOW TREE HOME SOLUTIONS LTD,                         ,HOUSING SERVICES,21312,Staying Put small repairs (contractors),Housing
Swale Borough Council,29UM,24/05/2017,1150890,390.00,113531,WILLOW TREE HOME SOLUTIONS LTD,                         ,HOUSING SERVICES,21312,Staying Put small repairs (contractors),Housing
Swale Borough Council,29UM,24/05/2017,1150951,4894.68,113531,WILLOW TREE HOME SOLUTIONS LTD,                         ,HOUSING SERVICES,04005,Housing Renovation Grants,Not used in this Structure
Swale Borough Council,29UM,24/05/2017,1150952,297.00,113531,WILLOW TREE HOME SOLUTIONS LTD,                         ,HOUSING SERVICES,04005,Housing Renovation Grants,Not used in this Structure
Swale Borough Council,29UM,25/05/2017,1150703,33.75,111217,ALLSTAR BUSINESS SOLUTIONS LTD - (DT),1073098                  ,DEMOCRATIC & ELECTORAL SERVICES,31230,Petrol/Derv & Oil,Corporate & Democratic Core
Swale Borough Council,29UM,25/05/2017,1150703,83.96,111217,ALLSTAR BUSINESS SOLUTIONS LTD - (DT),1073098                  ,SERVICE DELIVERY,31230,Petrol/Derv & Oil,Cultural and Related Services
Swale Borough Council,29UM,25/05/2017,1150703,123.55,111217,ALLSTAR BUSINESS SOLUTIONS LTD - (DT),1073098                  ,ENVIRONMENTAL RESPONSE TEAM,32030,Fuel For Contract Vehicles,Internal Trading Cost Centres
Swale Borough Council,29UM,25/05/2017,1150703,60.59,111217,ALLSTAR BUSINESS SOLUTIONS LTD - (DT),1073098                  ,LEISURE & OPEN SPACES,32030,Fuel For Contract Vehicles,Cultural and Related Services
Swale Borough Council,29UM,25/05/2017,1150703,48.13,111217,ALLSTAR BUSINESS SOLUTIONS LTD - (DT),1073098                  ,ENVIRONMENTAL RESPONSE TEAM,32030,Fuel For Contract Vehicles,Environmental and Regulatory Services
Swale Borough Council,29UM,25/05/2017,1150765,1391.44,102667,LLOYDS BANK - (DT),                         ,FINANCIAL SERVICES,74030,Bank Charges,Corporate & Democratic Core
Swale Borough Council,29UM,25/05/2017,1151005,978568.00,113705,MAIDSTONE BOROUGH COUNCIL - DT,                         ,FINANCIAL SERVICES,48017,Tariff to Gvt,Taxation and Non-Specific Grant Income
Swale Borough Council,29UM,25/05/2017,1151024,134.00,112972,RBS PURCHASING CARD (DT) - VIRGIN TRAINS,,ECONOMIC DEVELOPMENT,33010,Staff Travel - Buses & Trains,Planning and Development Services
Swale Borough Council,29UM,25/05/2017,1151024,46.00,112972,RBS PURCHASING CARD (DT) - VIRGIN TRAINS,,DEMOCRATIC & ELECTORAL SERVICES,33010,Staff Travel - Buses & Trains,Corporate & Democratic Core
Swale Borough Council,29UM,25/05/2017,1151024,8.55,112972,RBS PURCHASING CARD (DT) - SAINSBURY'S,,DEMOCRATIC & ELECTORAL SERVICES,42030,Catering Provisions,Corporate & Democratic Core
Swale Borough Council,29UM,25/05/2017,1151025,44.80,112972,RBS PURCHASING CARD (DT) - BAILEYS,,TOURISM & SPORTS DEVELOPMENT,42030,Catering Provisions,Internal Trading Cost Centres
Swale Borough Council,29UM,25/05/2017,1151026,99.01,112972,RBS PURCHASING CARD (DT) - MAP UK,                         ,COMMUNITY SAFETY,21016,Non-Planned Building Maintenance,Cultural and Related Services
Swale Borough Council,29UM,25/05/2017,1151026,19.41,112972,RBS PURCHASING CARD (DT) - TOOLBANK,                         ,PROPERTY SERVICES,21016,Non-Planned Building Maintenance,Corporate & Democratic Core
Swale Borough Council,29UM,25/05/2017,1151026,35.78,112972,RBS PURCHASING CARD (DT) - THIRSTYBOX,                         ,PROPERTY SERVICES,40110,Equipment Purchase,Corporate & Democratic Core
Swale Borough Council,29UM,25/05/2017,1151026,298.80,112972,RBS PURCHASING CARD (DT) - THE WATERFRONT COMPANY,,PROPERTY SERVICES,13110,Training - Courses,Internal Trading Cost Centres
Swale Borough Council,29UM,25/05/2017,1151027,242.50,112972,RBS PURCHASING CARD (DT) - DVLA,                         ,ENVIRONMENTAL RESPONSE TEAM,31410,Other Vehicle Expenses,Internal Trading Cost Centres
Swale Borough Council,29UM,25/05/2017,1151027,35.00,112972,RBS PURCHASING CARD (DT) - WWW.ICO.GOV.UK,,DIRECTOR OF CORPORATE SERVICES,47221,Members - Outside Bodies Allowance,Corporate & Democratic Core
Swale Borough Council,29UM,25/05/2017,1151028,23.68,112972,RBS PURCHASING CARD (DT) - ALDI,,CHIEF EXECUTIVE,42030,Catering Provisions,Corporate & Democratic Core
Swale Borough Council,29UM,25/05/2017,1151028,55.60,112972,RBS PURCHASING CARD (DT) - PARCELFORCE,,COMMUNITY SAFETY,46023,Postage,Environmental and Regulatory Services
Swale Borough Council,29UM,25/05/2017,1151028,28.75,112972,RBS PURCHASING CARD (DT) - TESCO,,CHIEF EXECUTIVE,42030,Catering Provisions,Corporate & Democratic Core
Swale Borough Council,29UM,25/05/2017,1151028,32.49,112972,RBS PURCHASING CARD (DT) - ICELAND,,CHIEF EXECUTIVE,42030,Catering Provisions,Corporate & Democratic Core
Swale Borough Council,29UM,25/05/2017,1151028,40.00,112972,RBS PURCHASING CARD (DT) - MARKS & SPENCER,,POLICY,42030,Catering Provisions,Corporate & Democratic Core
Swale Borough Council,29UM,25/05/2017,1151028,15.68,112972,RBS PURCHASING CARD (DT) - ALDI,,CHIEF EXECUTIVE,42030,Catering Provisions,Corporate & Democratic Core
Swale Borough Council,29UM,25/05/2017,1151029,103.85,112972,RBS PURCHASING CARD (DT) - ARGOS,,REVENUE SERVICES,44012,Stationery,Housing
Swale Borough Council,29UM,25/05/2017,1151030,1236.00,112972,RBS PURCHASING CARD (DT) - HMCTS,                         ,REVENUE SERVICES,45001,Fees And Services,Central Services to the Public
Swale Borough Council,29UM,25/05/2017,1151031,10.00,112972,RBS PURCHASING CARD (DT) - HMCTS,,HOUSING SERVICES,45001,Fees And Services,Housing
Swale Borough Council,29UM,25/05/2017,1151031,10.00,112972,RBS PURCHASING CARD (DT) - WILKO,,HOUSING SERVICES,21313,Staying Put - Materials,Housing
Swale Borough Council,29UM,25/05/2017,1151031,8.83,112972,RBS PURCHASING CARD (DT) - WICKES,,HOUSING SERVICES,21313,Staying Put - Materials,Housing
Swale Borough Council,29UM,25/05/2017,1151031,12.00,112972,RBS PURCHASING CARD (DT) - WILKO,,HOUSING SERVICES,21313,Staying Put - Materials,Housing
Swale Borough Council,29UM,25/05/2017,1151031,10.01,112972,RBS PURCHASING CARD (DT) - ASDA,,HOUSING SERVICES,32030,Fuel For Contract Vehicles,Housing
Swale Borough Council,29UM,25/05/2017,1151031,43.05,112972,RBS PURCHASING CARD (DT) - DUNELM,,HOUSING SERVICES,21313,Staying Put - Materials,Housing
Swale Borough Council,29UM,25/05/2017,1151032,6.20,112972,RBS PURCHASING CARD (DT) - PAYBYPHONE PARKING TWBC,,MKS LEGAL SERVICES,45045,Car Park Fees,Internal Trading Cost Centres
Swale Borough Council,29UM,25/05/2017,1151032,6.10,112972,RBS PURCHASING CARD (DT) - PAYBYPHONE PARKING TWBC,,MKS LEGAL SERVICES,45045,Car Park Fees,Internal Trading Cost Centres
Swale Borough Council,29UM,25/05/2017,1151032,31.18,112972,RBS PURCHASING CARD (DT) - PARCELFORCE,,MKS LEGAL SERVICES,46023,Postage,Internal Trading Cost Centres
Swale Borough Council,29UM,25/05/2017,1151032,6.10,112972,RBS PURCHASING CARD (DT) - PAYBYPHONE PARKING TWBC,,MKS LEGAL SERVICES,45045,Car Park Fees,Internal Trading Cost Centres
Swale Borough Council,29UM,25/05/2017,1151032,6.10,112972,RBS PURCHASING CARD (DT) - PAYBYPHONE PARKING TWBC,,MKS LEGAL SERVICES,45045,Car Park Fees,Internal Trading Cost Centres
Swale Borough Council,29UM,25/05/2017,1151032,6.78,112972,RBS PURCHASING CARD (DT) - PAYBYPHONE PARKING MBC,,MKS LEGAL SERVICES,45045,Car Park Fees,Internal Trading Cost Centres
Swale Borough Council,29UM,25/05/2017,1151032,9.70,112972,RBS PURCHASING CARD (DT) - MY HERMES,,MKS LEGAL SERVICES,46001,Courier Service,Internal Trading Cost Centres
Swale Borough Council,29UM,25/05/2017,1151032,6.08,112972,RBS PURCHASING CARD (DT) - MY HERMES,,MKS LEGAL SERVICES,46001,Courier Service,Internal Trading Cost Centres
Swale Borough Council,29UM,25/05/2017,1151032,9.70,112972,RBS PURCHASING CARD (DT) - MY HERMES,,MKS LEGAL SERVICES,46001,Courier Service,Internal Trading Cost Centres
Swale Borough Council,29UM,25/05/2017,1151032,6.08,112972,RBS PURCHASING CARD (DT) - MY HERMES,,MKS LEGAL SERVICES,46001,Courier Service,Internal Trading Cost Centres
Swale Borough Council,29UM,25/05/2017,1151032,6.10,112972,RBS PURCHASING CARD (DT) - PAYBYPHONE PARKING TWBC,,MKS LEGAL SERVICES,45045,Car Park Fees,Internal Trading Cost Centres
Swale Borough Council,29UM,25/05/2017,1151032,6.10,112972,RBS PURCHASING CARD (DT) - PAYBYPHONE PARKING TWBC,,MKS LEGAL SERVICES,45045,Car Park Fees,Internal Trading Cost Centres
Swale Borough Council,29UM,25/05/2017,1151032,-31.18,112972,RBS PURCHASING CARD (DT) - PARCELFORCE,,MKS LEGAL SERVICES,46023,Postage,Internal Trading Cost Centres
Swale Borough Council,29UM,25/05/2017,1151033,-260.00,112972,RBS PURCHASING CARD (DT) - HILTON METROPOLE,                         ,HOUSING SERVICES,47110,Conference,Housing
Swale Borough Council,29UM,25/05/2017,1151034,24.45,112972,RBS PURCHASING CARD (DT) - TOOLSTATION,,CONTRACT & PROCUREMENT,21016,Non-Planned Building Maintenance,Environmental and Regulatory Services
Swale Borough Council,29UM,25/05/2017,1151035,20.51,112972,RBS PURCHASING CARD (DT) - LTR SUPPLIES,,LEISURE & OPEN SPACES,21200,Maintenance - Grounds,Cultural and Related Services
Swale Borough Council,29UM,25/05/2017,1151035,153.92,112972,RBS PURCHASING CARD (DT) - PIPESTOCK.COM,,SERVICE DELIVERY,40110,Equipment Purchase,Cultural and Related Services
Swale Borough Council,29UM,25/05/2017,1151036,199.50,112972,RBS PURCHASING CARD (DT) - CILEX,,HUMAN RESOURCES,13110,Training - Courses,Corporate & Democratic Core
Swale Borough Council,29UM,25/05/2017,1151036,199.50,112972,RBS PURCHASING CARD (DT) - CILEX,,HUMAN RESOURCES,13110,Training - Courses,Corporate & Democratic Core
Swale Borough Council,29UM,25/05/2017,1151012,3302.37,114145,WORLDPAY (DT),07316500                 ,REVENUE SERVICES,74032,Commission Paid,Central Services to the Public
Swale Borough Council,29UM,25/05/2017,1151012,237.90,114145,WORLDPAY (DT),07316500                 ,REVENUE SERVICES,74032,Commission Paid,Central Services to the Public
Swale Borough Council,29UM,25/05/2017,1151012,16.01,114145,WORLDPAY (DT),07316500                 ,REVENUE SERVICES,74032,Commission Paid,Housing
Swale Borough Council,29UM,25/05/2017,1151012,19.68,114145,WORLDPAY (DT),07316500                 ,EXCHEQUER,74032,Commission Paid,Internal Trading Cost Centres
Swale Borough Council,29UM,25/05/2017,1151012,750.37,114145,WORLDPAY (DT),07316500                 ,EXCHEQUER,74032,Commission Paid,Internal Trading Cost Centres
Swale Borough Council,29UM,25/05/2017,1151012,16.63,114145,WORLDPAY (DT),07316500                 ,EXCHEQUER,74032,Commission Paid,Internal Trading Cost Centres
Swale Borough Council,29UM,25/05/2017,1151012,9.99,114145,WORLDPAY (DT),07316500                 ,MKS ICT,45001,Fees And Services,Internal Trading Cost Centres
Swale Borough Council,29UM,31/05/2017,1150962,472.00,109758,BATES JPW ADVERTISING LTD,784540                   ,LEISURE & OPEN SPACES,13201,Recruitment Adverts - Staff,Internal Trading Cost Centres
Swale Borough Council,29UM,31/05/2017,1150899,6373.48,104363,CAPITA BUSINESS SERVICES LTD,                         ,REVENUE SERVICES,46140,Computer Equipment & Materials,Housing
Swale Borough Council,29UM,31/05/2017,1150965,888.00,114576,CARRINGTON WEST LIMITED,07344853                 ,PLANNING SERVICES,12610,Agency/Contract Staff,Internal Trading Cost Centres
Swale Borough Council,29UM,31/05/2017,1150926,294.60,109501,CHEGWORTH GRAPHIC,7683594                  ,COMMUNICATIONS,44009,Signage,Internal Trading Cost Centres
Swale Borough Council,29UM,31/05/2017,1150853,5006.34,112288,COMENSURA LTD,04085767                 ,HUMAN RESOURCES,12610,Agency/Contract Staff,Internal Trading Cost Centres
Swale Borough Council,29UM,31/05/2017,1151042,331.17,110224,COPSHOP UK LTD,04734385                 ,ENVIRONMENTAL RESPONSE TEAM,43020,Protective Clothing,Internal Trading Cost Centres
Swale Borough Council,29UM,31/05/2017,1150891,1819.00,114827,FINN'S CANTERBURY,03231108                 ,PLANNING SERVICES,45041,Court Costs,Planning and Development Services
Swale Borough Council,29UM,31/05/2017,1151067,1702.00,113371,MATCHTECH,4426336                  ,PLANNING SERVICES,12610,Agency/Contract Staff,Internal Trading Cost Centres
Swale Borough Council,29UM,31/05/2017,1151014,330.00,102132,MIDLANDS SIGNS LEICESTER LTD,1778323                  ,SERVICE DELIVERY,53110,Private Contractors - CIS,Highway and Transport Services
Swale Borough Council,29UM,31/05/2017,1151076,416.52,102132,MIDLANDS SIGNS LEICESTER LTD,1778323                  ,SERVICE DELIVERY,53110,Private Contractors - CIS,Highway and Transport Services
Swale Borough Council,29UM,31/05/2017,1150909,1500.00,107634,REDACTED PERSONAL INFORMATION,                         ,ENVIRONMENTAL RESPONSE TEAM,45012,Legal Fees,Internal Trading Cost Centres
Swale Borough Council,29UM,31/05/2017,1151039,460.00,107205,MR J W GATES,                         ,LEISURE & OPEN SPACES,21220,Grounds Contract Variations,Cultural and Related Services
Swale Borough Council,29UM,31/05/2017,1150960,750.00,107821,OARE PARISH COUNCIL,                         ,TOURISM & SPORTS DEVELOPMENT,48010,Grants & Subscriptions,Cultural and Related Services
Swale Borough Council,29UM,31/05/2017,1150955,1735.17,114623,OVENDEN ALLWORKS LIMITED,08052607                 ,LEISURE & OPEN SPACES,04002,Construction,Not used in this Structure
Swale Borough Council,29UM,31/05/2017,1150620,353.50,113023,PREMIER TECHNICAL SERVICES GROUP,03233894                 ,PROPERTY SERVICES,21011,Service Contracts,Corporate & Democratic Core
Swale Borough Council,29UM,31/05/2017,1150959,1000.00,112965,QUEENBOROUGH ROWING CLUB,                         ,TOURISM & SPORTS DEVELOPMENT,48010,Grants & Subscriptions,Cultural and Related Services
Swale Borough Council,29UM,31/05/2017,1150964,1068.18,108791,ROYAL MAIL GROUP LTD,4138203                  ,PROPERTY SERVICES,46023,Postage,Holding Codes
Swale Borough Council,29UM,31/05/2017,1150803,3750.00,114823,REDACTED PERSONAL INFORMATION,                         ,FINANCIAL SERVICES,05260,Regeneration Fund Expenditure,Ledger/Suspense Codes
Swale Borough Council,29UM,31/05/2017,1150956,1435.00,108942,TELESHORE UK LTD,300861                   ,LEISURE & OPEN SPACES,40110,Equipment Purchase,Environmental and Regulatory Services
Swale Borough Council,29UM,31/05/2017,1151015,1000.00,110577,THE FREEDOM CENTRE,                         ,DEMOCRATIC & ELECTORAL SERVICES,23210,Hire Of Premises,Ledger/Suspense Codes
Swale Borough Council,29UM,31/05/2017,1151015,1200.00,110577,THE FREEDOM CENTRE,                         ,DEMOCRATIC & ELECTORAL SERVICES,23210,Hire Of Premises,Ledger/Suspense Codes
Swale Borough Council,29UM,31/05/2017,1150906,265.00,102536,THREE TOWNS OFFICE EQUIPMENT LTD,                         ,PROPERTY SERVICES,40010,Furniture,Internal Trading Cost Centres
Swale Borough Council,29UM,31/05/2017,1151059,413.40,102536,THREE TOWNS OFFICE EQUIPMENT LTD,                         ,CHIEF EXECUTIVE,40010,Furniture,Internal Trading Cost Centres
Swale Borough Council,29UM,31/05/2017,1151060,1060.00,102536,THREE TOWNS OFFICE EQUIPMENT LTD,                         ,EXCHEQUER,40010,Furniture,Internal Trading Cost Centres
Swale Borough Council,29UM,31/05/2017,1151104,270.30,107259,TRICO V.E. LTD SIGNAGE,                         ,SERVICE DELIVERY,53110,Private Contractors - CIS,Highway and Transport Services
Swale Borough Council,29UM,31/05/2017,1151074,299.52,114588,VANITORIALS LIMITED,3952938                  ,PROPERTY SERVICES,26020,Cleaning Materials,Internal Trading Cost Centres
Swale Borough Council,29UM,31/05/2017,1151056,600.00,105026,VENN GROUP LIMITED,                         ,MKS LEGAL SERVICES,12610,Agency/Contract Staff,Internal Trading Cost Centres
Swale Borough Council,29UM,31/05/2017,1151047,1373.75,114657,VIVID RESOURCING LIMITED,06459262                 ,PLANNING SERVICES,12610,Agency/Contract Staff,Internal Trading Cost Centres
Swale Borough Council,29UM,31/05/2017,1151048,1186.50,114657,VIVID RESOURCING LIMITED,06459262                 ,PLANNING SERVICES,12610,Agency/Contract Staff,Internal Trading Cost Centres
Swale Borough Council,29UM,31/05/2017,1150856,294.79,102653,WICKSTEED LEISURE LTD,603152                   ,LEISURE & OPEN SPACES,21200,Maintenance - Grounds,Cultural and Related Services
Swale Borough Council,29UM,31/05/2017,1150908,750.00,109924,WILKS HEAD & EVE,OC315743                 ,FINANCIAL SERVICES,45001,Fees And Services,Internal Trading Cost Centres
